{"text_format":"1","workbook":"xlsx","n_sheets":23,"sheets":["Cover Page","Contents","Facility Info","Operational Data","Operational Summary","Perf. Form 1","Energy Form 1","Permit Compliance","Improvements","Public Liasion","CO2 N2O","Residue Quality ","Water","Air (periodic)","Air (CEMS)","HCl","SO2","NOx","TOC","Particulates","CO 95% 10 min","HF","NH3"],"not_rendered":{"charts":8,"images":3,"macros":1,"external_links":0,"defined_names":23,"comments":0,"pivot_tables":0},"unopened":[],"bounds":{"document_bytes":16777216,"sheet_cells":100000,"rows_first":2000,"rows_last":500,"rows_between":2000,"halvings":0,"cell_chars":16384,"cell_head_chars":4096},"cells_cut":0,"cells_raw":0,"read":"whole","date_system":"1900"}

{"sheet":"Cover Page","index":0,"n_rows":54,"n_cols":14,"rows_kept":54,"cut":false,"hidden":false,"merged":[[13,13,18,15],[34,1,34,8],[0,3,5,6],[7,1,23,8],[28,1,28,8],[30,1,30,8],[32,1,32,8],[49,2,49,3],[49,6,49,8],[53,2,53,3],[36,1,36,8],[40,2,40,8],[42,2,42,4],[44,2,44,4],[46,2,46,3],[46,6,46,8],[47,2,47,3],[47,6,47,8]]}
[null,null,null,"Add company logo"]
[null,null,null,null,null,null,null,null,null,null,null,null,null,"Version 23.4a (for incinerators) - 15/11/2023"]
[]
[null,null,null,null,null,null,null,null,null,null,null,null,null,"Note that there is another version of this template available for co-incinerators"]
[]
[]
[]
[null,"Add photo"]
[]
[]
[]
[]
[null,null,null,null,null,null,null,null,null,null,null,null,null,"Notes:"]
[null,null,null,null,null,null,null,null,null,null,null,null,null,"This template may require adjustments by individual operators to meet specific reporting requirements as defined in the site Permit(s)"]
[]
[]
[]
[]
[]
[]
[]
[]
[]
[]
[]
[]
[]
[]
[null,"Annual Performance Report 2023"]
[]
[null,"Permit EPR/GP3433GH"]
[]
[null,"Cornwall Energy Recovery Centre"]
[]
[]
[]
[null,"SUEZ Recycling and Recovery UK Ltd"]
[]
[null,"Year:",2023]
[]
[null,"Address:","St Dennis, St Austell, Cornwall, PL26 8DY"]
[]
[null,"Tel: ","01726 824488"]
[]
[null,"Email: ","enquiries.uk@suez.com"]
[]
[null,"Prepared by:","Richard Watkins",null,null,"Position:","Environment Manager"]
[null,null,"Allan Chapman",null,null,null,"Senior Technical Engineer"]
[]
[null,"Approved by:","Tony Burge",null,null,"Position:","Plant Manager"]
[]
[null,"Version:",1]
[]
[null,"Issue Date:","2024-01-30"]

{"sheet":"Contents","index":1,"n_rows":45,"n_cols":11,"rows_kept":45,"cut":false,"hidden":false,"merged":[[4,10,7,14],[8,1,8,6],[3,1,3,6],[4,1,4,6],[5,1,5,6],[6,1,6,6],[7,1,7,6],[21,1,21,6],[9,1,9,6],[10,1,10,6],[11,1,11,6],[13,1,13,6],[14,1,14,6],[15,1,15,6],[16,1,16,6],[17,1,17,6],[18,1,18,6],[19,1,19,6],[20,1,20,6],[12,1,12,6],[36,1,36,6],[22,1,22,6],[23,1,23,6],[24,1,24,6],[27,1,27,6],[28,1,28,6],[29,1,29,6],[30,1,30,6],[31,1,31,6],[32,1,32,6],[35,1,35,6],[42,1,42,6],[44,0,44,7],[37,1,37,6],[38,1,38,6],[39,1,39,6],[40,1,40,6],[41,1,41,6]]}
[{"$f":"+'Cover Page'!$B$29","v":"Annual Performance Report 2023"},null,null,null,{"$f":"+'Cover Page'!$B$33","v":"Cornwall Energy Recovery Centre"}]
[]
["Contents",null,null,null,null,null,null,null,null,null,"Notes:"]
["Section","Subject",null,null,null,null,null,"Page ",null,null,"Section references and Page nos. to be inserted"]
[null,"Facility Information",null,null,null,null,null,null,null,null,"Sections and Subjects may require adjustment by individual operators to meet specific reporting requirements as defined in the sites Permit(s)"]
[null,"Operational Data"]
[null,"Operational Summary"]
[null,"Performance Form 1"]
[null,"Energy Form 1"]
[null,"Permit Compliance"]
[null,"Improvements"]
[null,"Public Liasion"]
[null,"Carbon dioxide and nitrous oxide emissions"]
[null,"Residue Quality "]
[null,"Emissions to Water"]
[null,"Emissions to Air (periodically monitored)"]
[null,"Emissions to Air (continuously monitored)"]
[null,"Hydrogen Chloride emissions"]
[null,"Sulphur Dioxdie emsissions"]
[null,"Oxides of Notrigen emissions"]
[null,"Total Organic Carbon emissions"]
[null,"Particulate Matter emissions"]
[null,"Carbon Monoxide emissions"]
[null,"Hydrogen fluoride emissions"]
[null,"Ammonia emissions"]
[]
["Version Control"]
["Section","Information",null,null,null,null,null,"Date"]
[1,"Original Report",null,null,null,null,null,"2024-01-30"]
[]
[]
[]
[]
[]
["Distribution"]
["Copy","Name, Role",null,null,null,null,null,"No."]
[1,"Mary Rees - Environment Agency Regulatory Officer",null,null,null,null,null,1]
[2,"Tony Burge - SUEZ Plant Manager",null,null,null,null,null,1]
[3,"Lisa Thompson - SUEZ Community Liaison Manager",null,null,null,null,null,1]
[4,"Samantha Edge - SUEZ Commercial Contracts Manager",null,null,null,null,null,1]
[]
[]
[]
[]
["This report is required under the Industrial Emissions Directive’s Article 55(2) requirements on reporting and public information on waste incineration plants and co-incineration plants, which require the operator to produce an annual report on the functioning and monitoring of the plant and make it available to the public. "]

{"sheet":"Facility Info","index":2,"n_rows":22,"n_cols":16,"rows_kept":22,"cut":false,"hidden":false,"merged":[[4,0,17,8],[21,0,59,8],[4,10,13,13],[3,15,12,18]]}
[{"$f":"+'Cover Page'!$B$29","v":"Annual Performance Report 2023"},null,null,null,{"$f":"+'Cover Page'!$B$33","v":"Cornwall Energy Recovery Centre"}]
[]
["Plant Description and Design",null,null,null,null,null,null,null,null,null,"Notes:"]
[null,null,null,null,null,null,null,null,null,null,null,null,null,null,null,"Include summary of key processes and procedures such as (but not limited to); waste reception, control rooms, grate, bed and bolier, energy & heat  generation, cooling systems, residue management, emission controls, health and safety systems, maintenance"]
["This non-hazardous waste incinerator operates 24/7 and the environmental permit allows it to process up to 240,000 tonnes of municipal waste and commercial/Industrial waste. The plant has two furnace lines and the heat produced by waste incineration is used to raise superheated steam which generates approximately 188,000 MWh/annum of electricity.\n\nActivities associated with the incineration are receipt and storage of municipal waste and commercial/industrial waste, production of steam and electricity, abatement of flue gas and handling of Incinerator Bottom Ash (IBA) and Air Pollution Control Residue (APCR).\n\nThe data included within this report corresponds to the following period: 1st January 2023 to 31st December 2023.\n",null,null,null,null,null,null,null,null,null,"Include summary of plant design, design capacity, no. of combustion lines, electrical and heat capacity and any other general information that descibes the facility, its location and purpose "]
[]
[]
[]
[]
[]
[]
[]
[]
[]
[]
[]
[]
[]
[]
["Summary of Operational Processes and Procedures"]
[]
["Incoming waste is delivered to site by refuse collection trucks. It is weighed in and delivered into the tipping hall.\nTIPPING HALL - A large tipping hall allows for refuse collection trucks to manoeuvre and tip waste safely. Air needed for combustion is drawn into the furnace from here so that negative pressure is maintained in order to avoid odour and dust escaping the building.\n\nBUNKER - Waste vehicles reverse to a wheel stop and tip their loads into a large concrete bunker. Mixing of waste occurs as the cranes driver sorts the waste looking for unsuitable material to be removed, and to improve the homogeneity of the incinerator feedstock.\n\nCONTROL ROOM - The plant’s control room centralises the operation of all equipment, including the grab cranes used to mix and load waste into a hopper that feeds the furnace. All on-site functions are monitored automatically and manually.  Its systems verify in real time that equipment is functioning properly, continuously monitor the combustion gas, and maximise the efficiency of the entire ERC process.\n\nGRATE AND BOILER - Waste is lifted into the charging hoppers by the crane. From here it falls into the furnace-charging chute and then is introduced onto the grate system by hydraulic feeders for incineration. Auxiliary burners can be used to help maintain the temperature above 850°C if required. The thermal energy released from the incineration of waste is used to convert water to super-heated steam along a boiler composed of 4 passes. At high pressure, this steam drives a turbine to generate electricity.\n\nELECTRICITY GENERATION - Electricity is generated at 11kv, with an electric production of approximately 180,000 MWh/annum and exporting approximately 160,000 MWh/annum to the national grid.\n\nINCINERATOR BOTTOM ASH (IBA) - Ash left on the grate after incineration is carried by conveyor, after quenching, to the IBA processing facility.  Up to 65,000 tonne of IBA is processed on site by the removal of ferrous and non-ferrous metal, stabilised and separated into fraction sizes of IBA prior to the export from site of the processed IBA aggregate and metals for re-use.\n\nAIR-COOLED CONDENSERS - After exiting the turbine, the steam is cooled and condensed back into water through air condensers. This recovered water is treated and reused in the boilers to produce more steam.\n\nEMISSION CONTROL - The gases from the furnace are subject to a rigorous cleaning process involving ammonia as selective non catalytic reduction (SNCR), lime and active carbon injections. This removes oxides of nitrogen, acidic gases, dioxins, and heavy metals from the flue gas stream.\n\nAIR POLLUTION CONTROL RESIDUE (APCR) - The cleaned gas passes through fine-fabric bag filters to remove solid particles before it is emitted through the stack. The resultant APCR residue, or fly-ash, contains particles from the incineration process, lime used in the flue gas treatment, salts and carbon dust. It is stored in a sealed silo until it is taken away for recycling in tankers.\n\nEMISSIONS MONITORING - As they pass through the stack, the residual flue gases from the process are continuously monitored before release. This data is relayed automatically to the control room."]

{"sheet":"Operational Data","index":3,"n_rows":65,"n_cols":10,"rows_kept":65,"cut":false,"hidden":false,"merged":[[5,9,7,9],[52,0,56,0],[33,1,38,1],[3,1,3,2],[7,1,19,1],[23,1,26,1],[28,1,29,1],[9,9,20,9],[21,9,25,9]]}
[{"$f":"+'Cover Page'!$B$29","v":"Annual Performance Report 2023"},null,null,null,{"$f":"+'Cover Page'!$B$33","v":"Cornwall Energy Recovery Centre"}]
[]
["Operational Data"]
["Plant Size",240000,null,"tonnes pa",86,"MWth",24,"MWe",null,"Notes:"]
["No. of combustion lines",2,null,"No. of Turbines:",null,1,null,null,null,"* - RDF to include SRF "]
[null,null,null,null,null,null,null,null,null,"** - Combusted tonnage = tonnes delivered in period + (tonnes in bunker at start of period – tonnes in bunker at end of period), or equivalent calculation depending on plant type"]
["Waste types received","Unit","Q1","Q2","Q3","Q4","Year Total","%"]
["Household / Local Authority","tonnes",39365,35369,41748,39667,{"$f":"SUM(C8:F8)","v":156149},{"$f":"IF(G8>0,G8/$G$18,\"-\")","v":0.64139806367605801}]
["Commercial & Industrial ",null,27361,11470,21648,26823,{"$f":"SUM(C9:F9)","v":87302},0.35860193632394199,null,"*** - CHP plants only"]
["Hazardous ",null,null,null,null,null,0,"-",null,"**** Availability Definition: 'the availability of a line is to be calculated by the number of hours the line reported Continuously Monitored emission levels to the Regulator through the calendar year divided by the total number of hours in that year. \n\nThe overall plant availability is calculated as the Mean of all lines in the plant. For clarity this includes periods of abnormal operation.'  \n\nRationale: The primary function of an Energy from Waste facility is the disposal of waste. It follows therefore that the availability of a plant is determined by the period of time a facility spends undertaking this activity."]
["Clinical",null,null,null,null,null,0,"-"]
["Waste wood (biomass) ",null,null,null,null,null,0,"-"]
["Refuse Derived Fuel * - H'hold/LA",null,null,null,null,null,{"$f":"SUM(C13:F13)","v":0},"-"]
["Refuse Derived Fuel *  - C&I",null,null,null,null,null,0,"-"]
["Other [Please specify]",null,null,null,null,null,0,"-"]
["Other [Please specify]",null,null,null,null,null,0,"-"]
["Other [Please specify]",null,null,null,null,null,0,"-"]
["Total waste received",null,{"$f":"SUM(C8:C17)","v":66726},{"$f":"SUM(D8:D17)","v":46839},{"$f":"SUM(E8:E17)","v":63396},{"$f":"SUM(F8:F17)","v":66490},243451]
["Rejected Waste ",null,null,14,null,null,{"$f":"SUM(C19:F19)","v":14},{"$f":"IF(G19>0,G19/$G$18,\"-\")","v":5.7506438667329357E-5}]
["Unprocessed waste transferred out",null,11,4,15,3,{"$f":"SUM(C20:F20)","v":33},{"$f":"IF(G20>0,G20/$G$18,\"-\")","v":1.355508911444192E-4}]
["Total waste combusted **",null,65490,45971,62222,65258,{"$f":"SUM(C21:F21)","v":238941}]
[null,null,null,null,null,null,null,null,null,"Password for protected cells\nA password has been set to prevent accidental  editing of cells with formulae. \nIf you still need to make an edit for some reason then the password = 1234"]
["Energy Usage / Export","Unit","Q1","Q2","Q3","Q4","Year Total","KWh/te"]
["Power Generated","MWh",47767,32520,46485,47459,{"$f":"SUM(C24:F24)","v":174231},{"$f":"IF(G24>0,G24*1000/$G$21,\"-\")","v":729.18000677991643}]
["Power Exported",null,42824,28936,42113,42475,{"$f":"SUM(C25:F25)","v":156348},{"$f":"IF(G25>0,G25*1000/$G$21,\"-\")","v":654.3372631737542}]
["Power Used on site",null,{"$f":"(C24+C27)-C25","v":4943},{"$f":"(D24+D27)-D25","v":3791},4372,4988,{"$f":"SUM(C26:F26)","v":18094},{"$f":"IF(G26>0,G26*1000/$G$21,\"-\")","v":75.725806789123681}]
["Power Imported",null,null,207,null,4,211,{"$f":"IF(G27>0,G27*1000/$G$21,\"-\")","v":0.88306318296148423}]
["Parasitic Load","%",{"$f":"IF(C24>0,1-C25/(C24+C27),\"-\")","v":0.10348148303221893},{"$f":"IF(D24>0,1-D25/(D24+D27),\"-\")","v":0.11583707642008123},{"$f":"IF(E24>0,1-E25/(E24+E27),\"-\")","v":9.4051844681079966E-2},{"$f":"IF(F24>0,1-F25/(F24+F27),\"-\")","v":0.10509238775467211},{"$f":"IF(G24>0,1-G25/(G24+G27),\"-\")","v":0.1037250203506036}]
["Thermal Energy Produced ***","MWh",null,null,null,null,{"$f":"SUM(C29:F29)","v":0},{"$f":"IF(G29>0,G29*1000/$G$21,\"-\")","v":"-"}]
["Thermal Energy Exported ***",null,null,null,null,null,0,{"$f":"IF(G30>0,G30*1000/$G$21,\"-\")","v":"-"}]
["R1 value (if applicable)","R1"]
[]
["Waste Disposal & Recovery","Unit","Q1","Q2","Q3","Q4","Year Total","% inputs"]
["APC Residues - produced","tonnes",1311,1110,1205,1404,{"$f":"SUM(C34:F34)","v":5030},{"$f":"IF(G34>0,G34/$G$21,\"-\")","v":2.1051221849745335E-2}]
["IBA - produced",null,8576,7801,12029,10067,38473,{"$f":"IF(G35>0,G35/$G$21,\"-\")","v":0.1610146437823563}]
["Metals recycling",null,2220,1244,1907,2108,{"$f":"SUM(C36:F36)","v":7479},3.1300613959094503E-2]
["Other",null,0,0,0,0,{"$f":"SUM(C37:F37)","v":0},"-"]
["Other",null,0,0,0,0,0,"-"]
["Other",null,0,0,0,0,0,"-"]
[]
["Raw Material Usage","Unit","Q1","Q2","Q3","Q4","Year Total","kg or Ltr /te"]
["Mains Water","ltrs",5188000,5050000,5647000,5036000,{"$f":"SUM(C42:F42)","v":20921000},{"$f":"IF(G42>0,G42/$G$21,\"-\")","v":87.557179387380145}]
["Other Water","ltrs",null,null,null,null,0,{"$f":"IF(G43>0,G43/$G$21,\"-\")","v":"-"}]
["Ammonia","kgs",39278,37585,57511,53295,187669,0.78541983167392793]
["Urea","kgs",null,null,null,null,{"$f":"SUM(C45:F45)","v":0},"-"]
["Activated Carbon","kgs",42247,28424,39407,41136,151214,0.63285078743288092]
["Lime / hydrated lime","kgs",362019,339763,404274,415225,1521281,6.366764180278814]
["Fuel oil","ltrs",62597,168590,138069,53452,422708,1.7690894404894932]
["Gas","cuf",null,null,null,null,0]
["Other",null,null,null,null,null,0]
[]
["Summary ","Line/Unit","Q1","Q2","Q3","Q4","Year Total",null,"Hrs in year "]
["Availability of waste combustion by line, hrs ****",1,2160,1716,2090,2093,{"$f":"SUM(C53:F53)","v":8059},{"$f":"+G53/$I$53","v":0.91997716894977166},8760]
[null,2,2060,1534,2031,2190,7815,{"$f":"+G54/$I$53","v":0.89212328767123283}]
[null,3,null,null,null,null,0,0]
[null,4,null,null,null,null,0,0]
[null,5,null,null,null,null,{"$f":"SUM(C57:F57)","v":0},0]
["Overall Availability, mean avg. of all lines, hrs",null,null,null,null,null,{"$f":"AVERAGE(G53:G54)","v":7937},0.9060502283105023]
["Hours of turbine operations, hrs",1,2160,1825.45,2103,2205,8293.4500000000007,0.94674086757990872]
["Hours of turbine operations, hrs",2,null,null,null,null,0,0]
["Hours of heat / steam export",null,null,null,null,null,0,{"$f":"IF(B61>0,G60/I53,\"n/a\")","v":"n/a"}]
["Net Calorific Value of waste","MJ/kg",8.9,9.3000000000000007,9.4,9,{"$f":"AVERAGE(C62:F62)","v":9.15}]
["Abnormal Events","qty.",2,3,1,2,8,{"$f":"IF(G63>0,\"yes\",\"no\")","v":"yes"}]
["Abnormal operation","hours",1.5,1.5,1.5,3,7.5,{"$f":"+(G64)/I53","v":8.5616438356164379E-4}]
["Permit Breaches","qty.",null,1,null,1,2,{"$f":"IF(G65>0,\"yes\",\"no\")","v":"yes"}]

{"sheet":"Operational Summary","index":4,"n_rows":31,"n_cols":11,"rows_kept":31,"cut":false,"hidden":false,"merged":[[4,0,26,8],[30,0,51,8],[4,10,13,13],[30,10,39,13]]}
[{"$f":"+'Cover Page'!$B$29","v":"Annual Performance Report 2023"},null,null,null,{"$f":"+'Cover Page'!$B$33","v":"Cornwall Energy Recovery Centre"}]
[]
["Summary of Plant Operations and Maintenance during the reporting year",null,null,null,null,null,null,null,null,null,"Notes:"]
[]
["The main annual outage of 2023 took place in April/May. The outage works consisted of the normal grit blasting of all internal furnace tubes, thickness testing and NDT. A large program of equipment overhauls was undertaken including grate and refractory inspections and repairs on both lines.\n\nDuring operation there has also been a significant amount of repair works carried out to the baghouses which has included re-plating of the cells and the application of a coating designed to protect the surfaces from corrosion.",null,null,null,null,null,null,null,null,null,"Include summary of key operational and/or mainteanance activity undertaken in the year, such as any major component upgrades and/or replacements "]
[]
[]
[]
[]
[]
[]
[]
[]
[]
[]
[]
[]
[]
[]
[]
[]
[]
[]
[]
[]
[]
[]
[]
["Summary of Residue Handling for the reporting year"]
[]
["All IBA produced by the EfW plant is transferred to the IBA recycling plant by conveyor, the IBA recycling plant is operated by Blue Phoenix. The IBA is non-hazardous, as confirmed by two weekly analysis of the IBA,  and undergoes a mechanical separation process to remove all ferrous and non-ferrous metals leaving an IBA aggregate product. The metals are transferred to other operators for recycling and the IBA is applied to land in construction activities as a replacement for virgin (quarried) aggregate. This is in accordance with Environment Agency Regulatory Position Statement (RPS) 206 \"Using unbound IBAA in construction activities\".\n\nA small volume of primary aggregate is imported to the site for blending with the IBA aggrgate produced on site. Blue Phoenix have advised the total imported tonnage for 2023 is 585 tonnes.\n\nAir Pollution Control (APC) residues is the fly ash from the boiler mixed with dry sorbents such as carbon and lime in the flue gas treatment plant. The APC residue is hazardous and is therefore collected and disposed of to landfill\n\nSome additional residues may be produced during cleaning of the boiler during cleaning activities in planned maintenance outages. This boiler ash, often mixed with grit blast residues from the cleaning process, is disposed of to landfill.",null,null,null,null,null,null,null,null,null,"Include in here a summary of residue handling regimes and destinations "]

{"sheet":"Perf. Form 1","index":5,"n_rows":54,"n_cols":10,"rows_kept":54,"cut":false,"hidden":false,"merged":[[53,7,53,8],[9,0,9,9],[10,0,10,1],[10,2,10,3],[10,4,10,5],[10,6,10,7],[10,8,10,9],[2,0,2,4],[3,1,3,4],[5,3,5,4],[5,6,5,7],[8,0,8,1],[8,2,8,3],[8,4,8,5],[8,6,8,7],[8,8,8,9],[11,0,11,1],[11,2,11,3],[11,4,11,5],[11,6,11,7],[11,8,11,9],[12,0,12,1],[12,2,12,3],[12,4,12,5],[12,6,12,7],[12,8,12,9],[15,0,15,1],[15,2,15,3],[15,4,15,5],[15,6,15,7],[15,8,15,9],[16,0,16,9],[13,0,13,1],[13,2,13,3],[13,4,13,5],[13,6,13,7],[13,8,13,9],[14,0,14,3],[14,4,14,5],[14,6,14,7],[14,8,14,9],[17,0,17,1],[17,2,17,3],[17,4,17,5],[17,6,17,7],[17,8,17,9],[18,0,18,1],[18,2,18,3],[18,4,18,5],[18,6,18,7],[18,8,18,9],[19,0,19,1],[19,2,19,3],[19,4,19,5],[19,6,19,7],[19,8,19,9],[20,0,20,1],[20,2,20,3],[20,4,20,5],[20,6,20,7],[20,8,20,9],[21,0,21,1],[21,2,21,3],[21,4,21,5],[21,6,21,7],[21,8,21,9],[22,0,22,3],[22,4,22,5],[22,6,22,7],[22,8,22,9],[31,0,31,3],[31,7,31,8],[32,0,32,3],[32,4,32,5],[32,7,32,8],[33,0,33,3],[33,4,33,5],[33,7,33,8],[23,0,23,3],[23,4,23,5],[23,6,23,7],[23,8,23,9],[25,0,25,9],[26,0,28,9],[36,0,36,3],[36,4,36,5],[36,7,36,8],[37,0,37,3],[37,4,37,5],[37,7,37,8],[34,0,34,3],[34,4,34,5],[34,7,34,8],[35,0,35,3],[35,4,35,5],[35,7,35,8],[47,0,47,1],[49,0,49,9],[50,0,51,9],[38,0,38,9],[39,0,40,9],[43,0,43,1],[43,2,43,9],[45,0,45,1],[46,0,46,1]]}
[{"$f":"+'Cover Page'!C39","v":2023}," Annual Reporting Performance Form 1"]
[]
[{"$f":"+'Cover Page'!B31","v":"Permit EPR/GP3433GH"},null,null,null,null,"Operator: ","SUEZ Recycling and Recovery UK Ltd"]
["Facility:",{"$f":"+'Cover Page'!B33:I33","v":"Cornwall Energy Recovery Centre"},null,null,null,"Form:","Performance 1"]
[]
["Reporting  Period from: ",null,null,"2023-01-01",null,"to:","2023-12-31"]
[]
[{"$f":"+A1","v":2023},"Annual Reporting of Waste Disposal and Recovery"]
["Waste Description",null,"Disposal Route(s)",null,"Disposal Tonnes",null,"Recovery Tonnes",null,"% / tonne of waste incinerated"]
["1) Hazardous Wastes"]
["APC Residues",null,"D5",null,5030,null,null,null,{"$f":"IF((E11+G11)>0,(E11+G11)/'Operational Data'!$G$21, \"-\")","v":2.1051221849745335E-2}]
["IBA",null,null,null,null,null,null,null,{"$f":"IF((E12+G12)>0,(E12+G12)/'Operational Data'!$G$21, \"-\")","v":"-"}]
[null,null,null,null,null,null,null,null,{"$f":"IF((E13+G13)>0,(E13+G13)/'Operational Data'!$G$21, \"-\")","v":"-"}]
[null,null,null,null,null,null,null,null,{"$f":"IF((E14+G14)>0,(E14+G14)/'Operational Data'!$G$21, \"-\")","v":"-"}]
["Total Hazardous Waste",null,null,null,{"$f":"SUM(E11:F14)","v":5030},null,{"$f":"SUM(G11:H14)","v":0},null,{"$f":"IF((E15+G15)>0,(E15+G15)/'Operational Data'!$G$21, \"-\")","v":2.1051221849745335E-2}]
[]
["2) Non-Hazardous Wastes"]
["IBA",null,"R10",null,null,null,38473,null,{"$f":"IF((E18+G18)>0,(E18+G18)/'Operational Data'!$G$21, \"-\")","v":0.1610146437823563}]
["Ferrous Metal",null,"R5",null,null,null,2065,null,{"$f":"IF((E19+G19)>0,(E19+G19)/'Operational Data'!$G$21, \"-\")","v":8.6423008190306388E-3}]
["Non-ferrous Metal",null,"R5",null,null,null,5413,null,{"$f":"IF((E20+G20)>0,(E20+G20)/'Operational Data'!$G$21, \"-\")","v":2.2654128006495328E-2}]
[null,null,null,null,null,null,null,null,{"$f":"IF((E21+G21)>0,(E21+G21)/'Operational Data'!$G$21, \"-\")","v":"-"}]
[null,null,null,null,null,null,null,null,{"$f":"IF((E22+G22)>0,(E22+G22)/'Operational Data'!$G$21, \"-\")","v":"-"}]
["Total Non-Hazardous Waste",null,null,null,{"$f":"SUM(E18:F22)","v":0},null,{"$f":"SUM(G18:H22)","v":45951},null,{"$f":"IF((E23+G23)>0,(E23+G23)/'Operational Data'!$G$21, \"-\")","v":0.19231107260788227}]
["TOTAL WASTE",null,null,null,{"$f":"+E23+E15","v":5030},null,{"$f":"+G23+G15","v":45951},null,{"$f":"IF((E24+G24)>0,(E24+G24)/'Operational Data'!$G$21, \"-\")","v":0.21336229445762761}]
[]
["Operator’s comments :"]
[]
[]
[]
[]
[{"$f":"+A1","v":2023},"Annual Reporting of Water and Other Raw Material Usage"]
["Raw Material",null,null,null,"Usage",null,"Unit","Specific Useage",null,"Unit"]
["Mains Water",null,null,null,{"$f":"(+'Operational Data'!G42)/1000","v":20921},null,"m3",{"$f":"IF(E33>0,E33/'Operational Data'!$G$21,\"-\")","v":8.7557179387380155E-2},null,"m3/te"]
["Total Water",null,null,null,{"$f":"(+'Operational Data'!G43+'Operational Data'!G42)/1000","v":20921},null,"m3",{"$f":"IF(E34>0,E34/'Operational Data'!$G$21,\"-\")","v":8.7557179387380155E-2},null,"m3/te"]
["Urea / Ammonia",null,null,null,{"$f":"+'Operational Data'!G44","v":187669},null,"kg",{"$f":"IF(E35>0,E35/'Operational Data'!$G$21,\"-\")","v":0.78541983167392793},null,"kg/te"]
["Activated Carbon",null,null,null,{"$f":"+'Operational Data'!G46","v":151214},null,"kg",{"$f":"IF(E36>0,E36/'Operational Data'!$G$21,\"-\")","v":0.63285078743288092},null,"kg/te"]
["Lime / hydrated lime / Sodium Bicarb.",null,null,null,{"$f":"+'Operational Data'!G47","v":1521281},null,"kg",{"$f":"IF(E37>0,E37/'Operational Data'!$G$21,\"-\")","v":6.366764180278814},null,"kg/te"]
[]
["Operator’s comments :"]
[]
[]
[]
[{"$f":"+A31","v":2023},"Annual Reporting of other performance indicators "]
["Parameter",null,"Results by Line"]
[null,null,"A1","A2","A3","A4","A5",null,"Turbine 1","Turbine 2"]
["Operating hours for the year, hours",null,{"$f":"'Operational Data'!G53","v":8059},{"$f":"'Operational Data'!G54","v":7815},null,null,null,null,8293]
["Number of periods of abnormal operation, qty.",null,6,2]
["Cumulative hours of abnormal operation for this year, hours",null,5,3]
[]
["Operator’s comments :"]
[]
[]
[]
["Signed: ","Richard Watkins",null,null,null,null,"Date:","2024-01-22"]

{"sheet":"Energy Form 1","index":6,"n_rows":29,"n_cols":8,"rows_kept":29,"cut":false,"hidden":false,"merged":[[2,6,2,8],[4,1,4,4],[6,3,6,4],[6,6,6,7],[8,0,8,2],[8,3,8,4],[8,6,8,8],[9,0,9,2],[9,3,9,4],[9,6,9,8],[10,0,10,2],[10,3,10,4],[10,6,10,8],[11,0,11,2],[11,3,11,4],[11,6,11,8],[12,0,12,2],[12,3,12,4],[12,6,12,8],[13,0,13,2],[13,3,13,4],[13,6,13,8],[14,0,14,2],[14,3,14,4],[14,6,14,8],[15,0,15,2],[15,3,15,4],[15,6,15,8],[17,0,17,8],[18,0,24,8]]}
[{"$f":"+'Cover Page'!C39","v":2023}," Annual Reporting of Energy Usage/Export"]
[]
[{"$f":"+'Cover Page'!B31","v":"Permit EPR/GP3433GH"},null,null,null,null,"Operator: ",{"$f":"'Perf. Form 1'!G3","v":"SUEZ Recycling and Recovery UK Ltd"}]
[]
["Facility:",{"$f":"+'Cover Page'!B33:I33","v":"Cornwall Energy Recovery Centre"},null,null,null,"Form:","Energy 1"]
[]
["Reporting  Period from: ",null,null,{"$f":"+'Perf. Form 1'!D6:E6","v":"2023-01-01"},null,"to:",{"$f":"+'Perf. Form 1'!G6:H6","v":"2023-12-31"}]
[]
["Energy Source",null,null,"Energy Usage",null,"Unit","Specific Useage (KWh/tonne incinerated"]
["Electricity Produced",null,null,{"$f":"+'Operational Data'!G24","v":174231},null,"MWh",{"$f":"+'Operational Data'!H24","v":729.18000677991643}]
["Electricity Imported   ",null,null,{"$f":"+'Operational Data'!G27","v":211},null,"MWh",{"$f":"+'Operational Data'!H27","v":0.88306318296148423}]
["Electricity Exported",null,null,{"$f":"+'Operational Data'!G25","v":156348},null,"MWh",{"$f":"+'Operational Data'!H25","v":654.3372631737542}]
["Gas Oil",null,null,{"$f":"('Operational Data'!G48*(10^-6))*845","v":357.18825999999996},null,"tonnes",{"$f":"(D13*42800*1000*(1/3600))/'Operational Data'!G21","v":17.772469084650837}]
["Steam/hot water exported",null,null,{"$f":"+'Operational Data'!G30","v":0},null,"GWh",{"$f":"+'Operational Data'!H30","v":"-"}]
[]
[]
[]
["Operator’s comments :"]
[]
[]
[]
[]
[]
[]
[]
[]
[]
[]
["Signed: ","Richard Watkins",null,null,null,null,"Date:","2024-01-22"]

{"sheet":"Permit Compliance","index":7,"n_rows":35,"n_cols":12,"rows_kept":35,"cut":false,"hidden":false,"merged":[[25,1,25,3],[25,4,25,6],[25,7,25,9],[23,1,23,3],[23,4,23,6],[23,7,23,9],[24,1,24,3],[24,4,24,6],[24,7,24,9],[22,1,22,3],[22,4,22,6],[22,7,22,9],[20,1,20,3],[20,4,20,6],[20,7,20,9],[21,1,21,3],[21,4,21,6],[21,7,21,9],[34,4,34,8],[9,0,9,1],[9,2,9,4],[9,5,9,8],[10,0,10,1],[10,2,10,4],[10,5,10,8],[11,0,11,1],[11,2,11,4],[11,5,11,8],[12,0,12,1],[12,2,12,4],[12,5,12,8],[13,0,13,1],[13,2,13,4],[13,5,13,8],[7,0,7,1],[7,2,7,8],[8,0,8,1],[8,2,8,4],[8,5,8,8],[14,0,14,1],[14,2,14,4],[14,5,14,8],[15,0,15,1],[15,2,15,4],[15,5,15,8],[18,1,18,3],[18,4,18,6],[18,7,18,9],[19,1,19,3],[19,4,19,6],[19,7,19,9],[26,1,26,3],[26,4,26,6],[26,7,26,9],[27,1,27,3],[27,4,27,6],[27,7,27,9],[33,1,33,3],[33,4,33,6],[33,7,33,9],[8,11,15,11],[30,0,30,10],[17,0,17,10],[31,1,31,3],[31,4,31,6],[31,7,31,9],[32,1,32,3],[32,4,32,6],[32,7,32,9],[28,1,28,3],[28,4,28,6],[28,7,28,9]]}
[{"$f":"+'Cover Page'!$B$29","v":"Annual Performance Report 2023"},null,null,null,{"$f":"+'Cover Page'!$B$33","v":"Cornwall Energy Recovery Centre"}]
[]
["Summary of Permit Compliance"]
[]
["Compliance with permit limits for continuously monitored pollutants"]
[]
["The plant met its emission limits as shown in the table below:"]
["Substance",null,"Percentage time compliant during operationNote 1",null,null,null,null,null,null,null,null,"Notes:"]
[null,null,"Half-hourly limit",null,null,"Daily limit",null,null,null,null,null,"Note 1: Please report to 2 decimal places, i.e. xx.xx%\n\nNote 2: Please provide a brief summary of each notification or non-compliance in the table (rather than just referring to notifications that were sent to the Regulator), including stating the value of measured result for any ELV exceedances.   \n\n"]
["Particulates",null,1,null,null,1]
["Oxides of nitrogen",null,1,null,null,1]
["Sulphur dioxide",null,1,null,null,1]
["Carbon monoxide",null,"99.99%\n95% of 10-min averages",null,null,0.99850000000000005]
["Total organic carbon",null,1,null,null,1]
["Hydrogen chloride",null,1,null,null,1]
["Hydrogen fluoride",null,1,null,null,1]
[]
["Summary of any notifications or non-compliances under the permit"]
["Date","Summary of notification or non-compliance [including Line/Reference]Note 2",null,null,"Reason ",null,null,"Measures taken to prevent reoccurrence"]
["2023-02-09","Abnormal operation - elevated particulates on L1",null,null,"Failed bag filter",null,null,"Bag filter replaced"]
["2023-02-14","Abnormal operation - CEMS VOC data loss L1",null,null,"Electrical fault",null,null,"Solenoid replaced"]
["2023-05-31","Abnormal operation - elevated particulates on L1",null,null,"Failed bag filter",null,null,"Bag filter replaced"]
["2023-06-01","Abnormal operation - elevated particulates on L1",null,null,"Failed bag filter",null,null,"Bag filter replaced"]
["2023-06-07","Abnormal operation - elevated particulates on L1",null,null,"Failed bag filter",null,null,"Bag filter replaced and APCR blockage cleared"]
["2023-06-08","Breach of CO 95th percentile limit and daily average on L2",null,null,"Line trip on start-up and combustion control issues",null,null,"Plant taken offline until all start-up issues resolved"]
["2023-07-22","Abnormal operation - CEMS data loss on L2",null,null,"Solenoid failure",null,null,"Shut down of the line and solenoid replaced"]
["2023-11-08","Breach of IBA TOC Limit",null,null,"Possible lab issue",null,null,"Retests in progress"]
["2023-12-27","Abnormal operation - breach of CO 95th percentile limit due to corrupted CEMS data",null,null,"Boiler tube leak and excess moisture in flue gasses",null,null,"Line shut down and boiler tubes replaced"]
["2023-12-29","Abnormal operation - Erroneous CEMS data and data loss on L2",null,null,"Solenoid failure",null,null,"Shut down of the line and solenoid replaced"]
[]
["Summary of any complaints received and actions to taken to resolve them."]
["Date","Summary of complaint [including Line/Reference]",null,null,"Reason *",null,null,"Measures taken to prevent reoccurrence"]
["2023-06-21","Resident complaint regarding orange coloured dust deposits on windows and sills.",null,null,"Not substantiated",null,null,"Complainant visited by Community Liaison Mgr."]
["2023-09-14","Noise and light complaints from St Dennis Parish Council from the 5th and 6th September. Noise during the shutdown and light relates to lighting around the site at night.",null,null,null,null,null,"Community Liaison Mgr working with the Parish Council to address the complaints"]
[null,null,null,null,"* including whether substantiated by the operator or the EA"]

{"sheet":"Improvements","index":8,"n_rows":38,"n_cols":5,"rows_kept":38,"cut":false,"hidden":false,"merged":[[37,0,37,8],[38,0,47,8],[4,0,4,8],[5,0,13,8],[15,0,15,8],[16,0,24,8],[26,0,26,8],[27,0,35,8]]}
[{"$f":"+'Cover Page'!$B$29","v":"Annual Performance Report 2023"},null,null,null,{"$f":"+'Cover Page'!$B$33","v":"Cornwall Energy Recovery Centre"}]
[]
["Summary of Plant Improvements"]
[]
["Summary of any efficiency improvements that have been completed within the year."]
[]
[]
[]
[]
[]
[]
[]
[]
[]
[]
["Summary of any permit improvement conditions that have been completed within the year and the resulting environmental benefits."]
["Reports were submitted on the 22/09/2023 to provide mercury and dioxins/furans data as required by permit Improvement Conditions IC2 and IC3:\n\nIC2 “The operator shall submit a report to the Environment Agency on whether waste feed to the plant can be proven to have a low and stable mercury content. The report shall have regard to BAT 4 of the BAT conclusions, be based on historic mercury emissions monitoring data and have regard to the Environment Agency Mercury Monitoring Protocol.”\n\nIC3 “The operator shall submit a report to the Environment Agency on whether Dioxins emissions to air are stable. The report shall have regard to BAT 4 of the BAT conclusions, be based on historic dioxins emissions monitoring data and have regard to the Environment Agency Dioxins Monitoring Protocol.”"]
[]
[]
[]
[]
[]
[]
[]
[]
[]
["Summary of any changes to the plant or operating techniques which required a variation to the permit and a summary of the resulting environmental impact."]
["An Environment Agency initiated permit variation was issued 10/11/2023 to update the permit following a statutory review of the permits in the industry sector for incineration. The opportunity was also taken to consolidate the original permit and subsequent variations. The Industrial Emissions Directive (IED) came into force on 7th January 2014 with the requirement to implement all relevant Best Available Techniques (BAT) conclusions as described in the Commission Implementing Decision. The BAT conclusions for incineration were published on 03 December 2019 in the Official Journal of the European Union (L323) following a European Union wide review of BAT, implementing decision 2017/2117/EU of 21 November 2017.\nThe actual permit issued 10/11/2023 was a copy of the draft issued in error, the final permit is yet to be issued as of 17/01/2024."]
[]
[]
[]
[]
[]
[]
[]
[]
[]
["Summary of any other improvements made to the plant or planned to be made and a summary of the resulting environmental benefits."]

{"sheet":"Public Liasion","index":9,"n_rows":29,"n_cols":5,"rows_kept":29,"cut":false,"hidden":false,"merged":[[16,0,16,1],[16,2,16,8],[5,0,5,1],[5,2,5,8],[6,0,7,1],[6,2,7,8],[8,0,9,1],[8,2,9,8],[10,0,11,1],[10,2,11,8],[12,0,13,1],[12,2,13,8],[15,0,15,8],[17,0,18,1],[17,2,18,8],[19,0,20,1],[19,2,20,8],[21,0,22,1],[21,2,22,8],[23,0,24,1],[23,2,24,8],[25,0,26,1],[25,2,26,8],[28,0,28,8]]}
[{"$f":"+'Cover Page'!$B$29","v":"Annual Performance Report 2023"},null,null,null,{"$f":"+'Cover Page'!$B$33","v":"Cornwall Energy Recovery Centre"}]
[]
["Details of Public & Stakeholder Liaison"]
[]
["Summary of events held during the reporting year."]
["Date",null,"Description"]
["Various dates throughout the year.",null,"We held Community Liaison Group meetings at Connon (31/1/23, 25/4/23, 3/10/23), St. Erth (8/2/23, 19/4/23 12/7/23 11/10/23), CERC (30/1/23, 24/7/23) and Hallenbeagle (22/11/23).   We also welcomed 936  visitors to the CERC for tours of the facility."]
[]
["9-11 June, 2023",null,"We engaged with the public on our trade stand at the Royal Cornwall Show.  The theme was \"Right waste in the Right Place\" with an emphasis on correct disposal of batteries."]
[]
["11/03/23 and 7/10/23",null,"Beach Clean Events held at Par Beach and Perranporth Beach.  These were well attended by staff and families/friends and allowed the opportunity to engage with the public about the work we do."]
[]
["Throughout November and December",null,"We supported Cornwall Council's Engagement team at several WCA service change Roadshow events."]
[]
[]
["List of events planned for next year"]
["Date",null,"Description"]
["Various dates to be confirmed",null,"Community Liaison Meetings will take place at Connon, St. Erth, CERC and Hallenbeagle."]
[]
["7/3/24 and 22/3/24",null,"Careers Fairs at Truro and Penwith College and other venues to be confirmed."]
[]
["23/03/24 and another in October to be confirmed",null,"Beach Clean Events will be held at Seaton Beach and one other beach to be confirmed."]
[]
["6-8 June, 2024",null,"Royal Cornwall Show trade stand with waste education elements."]
[]
["Throughout the year - dates to be confirmed.",null,"We will be supporting Cornwall Council's Engagement team at several WCA service change Roadshow events."]
[]
[]
["If you wish to be involved in the public liaison programme, please contact;\nLisa Thompson (07977 941248) lisa.thompson@suez.com"]

{"sheet":"CO2 N2O","index":10,"n_rows":23,"n_cols":6,"rows_kept":23,"cut":false,"hidden":false,"merged":[[20,2,20,3],[23,1,23,3],[16,2,16,3],[4,0,4,3],[9,0,9,3],[17,0,17,3],[13,0,13,3],[12,0,12,1],[8,2,8,3],[11,2,11,3]]}
[{"$f":"+'Cover Page'!$B$29","v":"Annual Performance Report 2023"},null,{"$f":"+'Cover Page'!$B$33","v":"Cornwall Energy Recovery Centre"}]
[]
["Carbon dioxide emissions and biogenic content of waste inputs",null,null,null,null,"Notes:"]
[]
["Carbon dioxide emissions (all types of plant)"]
[null,"Annual mass of carbon dioxide released","tonnes ",235019]
[null,"Annual mass of carbon dioxide released per tonne of waste burned","t CO2 / t waste ",{"$f":"D6/'Operational Data'!G21","v":0.98358590614419461}]
[null,"Annual mass of carbon dioxide released per MWh of energy exported","t CO2 / MWh export ",{"$f":"D6/'Operational Data'!G25","v":1.5031788062527183}]
[null,"Description of how annual carbon dioxide mass emission has been calculated. \nSee Note 1","Monthly average CO2 values from the CEMS(%) with density value applied x monthly average flow rate from the CEMS x operational hours.",null,null,"Note 1: Where available, data from CO2 CEMS should be used. \nOtherwise, only where no CEMS data is available, a suitable emissions factor should be used based on the tonnage of waste burned e.g.0.942 tCO2/t waste as per Tolvik report 2022, or other justified emissions factor  - refer to embedded Environment Agency guidance note above or updated version for suitable descriptive text."]
["Nitrous oxide emissions (only plants which use ammonia or urea to abate NOx emissions)"]
[null,"Annual mass emissions of nitrous oxide","tonnes N2O",1.03]
[null,"Description of how annual nitrous oxide mass emission has been calculated\nSee Note 2","CEMS monthly average N2O (mg/m3) x CEMS monthly average flow rate x monthly operational hours.",null,null,"Note 2: Where available, data from N2O CEMS should be used. \nIf no CEMS data is available, from periodic monitoring. Otherwise, a suitable emissions factor should be used based on the tonnage of waste burned e.g. 0.0981 kgN20/t waste as per 2021 Pollution Inventory data for plants with urea-based SNCR - refer to embedded Environment Agency guidance note above or updated version for suitable descriptive text."]
["Total annual carbon dioxide and nitrous oxide emissions. \nSee Note 3. ",null,"tonnes CO2e",{"$f":"(D11*298)+D6","v":235325.94},null,"Note 3: Total annual carbon dioxide and nitrous oxide emissions reported as carbon dioxide equivalent where 1 tonne nitrous oxide is equivalent to 298 tonne carbon dioxide"]
["Biogenic CO2 emissions (See Note 4)",null,null,null,null,"Note 4: Only plants combusting residual municipal waste, refuse derived fuel or solid recovered fuel"]
[null,"Percentage of total carbon dioxide emissions arising from biogenic waste","%",0.52800000000000002]
[null,"No. of measurements undertaken","Number",1]
[null,"Description of how percentage biogenic carbon dioxide emissions have been measured or calculated.\nSee Note 5","Calculated from the annual waste analysis, biogenic fraction for each waste type taken from DEFRA 2014 energy recovery for residual waste, a carbon based modelling approach.",null,null,"Note 5: Examples include direct measurement via C14 method or BIOMA software - refer to embedded Environment Agency guidance note above or updated version for suitable descriptive text, quoting standards where relevant. \nOtherwise, as an approximation (and in lieu of any more accurate metrics which may be developed in future), the measured or estimated biogenic fraction by net calorific value can be assumed to be the same as the biogenic CO2 fraction of the total CO2 emissions from the plant. "]
["Biogenic fraction of waste feedstock (See Note 4)"]
[null,"Yearly average biogenic percentage of the waste by net calorific value (NCV)","%",0.52800000000000002]
[null,"If sampling undertaken, no. of samples used to ascertain average biogenic % above","Number",1]
[null,"Description of how biogenic percentage (by NCV) has been calculated or estimated. \nSee Note 6","See above for biogenic CO2 emissions calculation.",null,null,"Note 6: Where available, data from waste sampling should be used; otherwise, an estimated figure with justification can be used, or a figure assumed on the basis of a national average e.g. 2017 WRAP data for residual waste of 51.8% biogenic energy content - refer to embedded Environment Agency guidance note above or updated version for suitable descriptive text, quoting standards where relevant. "]
[]
[null,"Comments:"]

{"sheet":"Residue Quality ","index":11,"n_rows":34,"n_cols":6,"rows_kept":34,"cut":false,"hidden":false,"merged":[[16,0,17,1],[16,2,17,6],[12,0,12,6],[13,0,13,1],[13,2,13,6],[5,0,6,6],[7,0,8,6],[9,0,10,6],[14,0,15,1],[14,2,15,6],[18,0,19,1],[18,2,19,6],[20,0,21,1],[20,2,21,6],[29,3,29,4],[25,2,26,2],[26,3,26,4],[26,5,26,6],[25,3,25,6],[24,0,24,6],[33,0,38,6],[30,3,30,4],[32,0,32,6],[25,0,26,1],[27,0,27,1],[28,0,28,1],[29,0,29,1],[30,0,30,1],[27,3,27,4],[28,3,28,4],[27,5,27,6],[28,5,28,6],[29,5,29,6],[30,5,30,6]]}
[{"$f":"+'Cover Page'!$B$29","v":"Annual Performance Report 2023"},null,null,null,{"$f":"+'Cover Page'!$B$33","v":"Cornwall Energy Recovery Centre"}]
[]
["Residue Quality Monitoring Requirements"]
[]
["Summary of monitoring undertaken and compliance"]
["The samples for the quarterly IBA analysis were taken on the 15/02/2023, the 10/05/2023, the 16/08/2023 and the 08/11/2023."]
[]
["Blue Phoenix have advised that a total of 585 tonnes of primary aggregate (granite) was imported to the site during 2023 for blending with the IBA aggregate produced on site."]
[]
[]
[]
[]
["Commentary on any specific events"]
["Date & Event",null,"Description"]
["2023-11-08",null,"The IBA TOC result provided for this sample was 3.17% which is above the 3% limit value. Application of the labs uncertainty of measurement could give a compliant result but the original sample is being retested, and additional samples have been provided to the lab for further TOC analysis. The results are still pending currently so the investigation is ongoing, there were no operational issues at the time of sampling likely to have affected the combustion process."]
[]
[]
[]
[]
[]
[]
[]
[]
[]
["Residue Quality Monitoring Results"]
["Parameter (unit) ",null,"Limit","Normal Operation "]
[null,null,null,"Bottom ash  ",null,"APC Residues"]
["Loss on Ignition (average %)",null,"<5%","N/A"]
["Total Organic Carbon (average %)",null,"<3%",2.76]
["No. of Assessments Undertaken",null,"---",4,null,4]
["No. of Hazardous Results",null,"---",0]
[]
["Comments :"]
["Feb 2022 TOC = 2.58%\nMay 2022 TOC = 2.8%\nAug 2022 TOC = 2.5%\nNov 2022 TOC = 3.17% (further analysis ongoing)"]

{"sheet":"Water","index":12,"n_rows":23,"n_cols":9,"rows_kept":23,"cut":false,"hidden":false,"merged":[[5,0,6,8],[7,0,8,8],[9,0,10,8],[12,0,12,8],[13,0,13,1],[13,2,13,8],[21,0,21,8],[22,0,22,2],[22,3,22,4],[14,0,15,1],[14,2,15,8],[16,0,17,1],[16,2,17,8],[18,0,19,1],[18,2,19,8],[23,0,23,2],[23,3,23,4],[24,0,24,2],[24,3,24,4],[25,0,25,2],[25,3,25,4],[29,0,29,2],[29,3,29,4],[26,0,26,2],[26,3,26,4],[27,0,27,2],[27,3,27,4],[28,0,28,2],[28,3,28,4]]}
[{"$f":"+'Cover Page'!$B$29","v":"Annual Performance Report 2023"},null,null,null,{"$f":"+'Cover Page'!$B$33","v":"Cornwall Energy Recovery Centre"}]
[]
["Emissions to Water"]
[]
["Summary of monitoring undertaken and compliance"]
["There are no discharges to water that require monitoring under the Environmental Permit. There are two discharges to water from package sewage treatment plants serving the EfW and IBA plant welfare facilities but these are regulated under separate Environmental Permits. There are no discharges to sewer from the site."]
[]
[]
[]
[]
[]
[]
["Commentary on any specific events"]
["Date & Event",null,"Description"]
[]
[]
[]
[]
[]
[]
[]
["Emissions to Water / Sewer"]
["Parameter",null,null,"Monitoring Frequency",null,"Limit","Target","Max.","Average"]

{"sheet":"Air (periodic)","index":13,"n_rows":40,"n_cols":13,"rows_kept":40,"cut":false,"hidden":false,"merged":[[5,10,8,13],[9,10,11,13],[8,0,8,9],[5,0,6,9],[11,0,11,1],[12,0,12,1],[11,3,11,4],[12,3,12,4],[9,0,10,1],[9,5,9,9],[9,3,10,4],[9,2,10,2],[16,0,16,1],[17,0,17,1],[18,0,18,1],[13,0,13,1],[14,0,14,1],[15,0,15,1],[39,0,40,9],[25,0,25,1],[26,0,26,1],[22,0,22,1],[23,0,23,1],[37,0,37,1],[27,0,27,1],[28,0,28,1],[29,0,29,1],[30,0,30,1],[31,0,31,1],[32,0,32,1],[37,3,37,4],[29,3,29,4],[30,3,30,4],[36,3,36,4],[38,0,38,9],[19,0,19,1],[20,0,20,1],[21,0,21,1],[34,3,34,4],[35,3,35,4],[33,0,33,1],[34,0,34,1],[35,0,35,1],[36,0,36,1],[24,0,24,1],[32,3,32,4],[27,3,27,4],[33,3,33,4],[19,3,19,4],[20,3,20,4],[21,3,21,4],[22,3,22,4],[23,3,23,4],[24,3,24,4],[31,3,31,4],[25,3,25,4],[26,3,26,4],[28,3,28,4],[13,10,14,12],[15,10,16,10],[15,11,16,11],[15,12,16,12],[18,3,18,4],[13,3,13,4],[14,3,14,4],[15,3,15,4],[16,3,16,4],[17,3,17,4]]}
[{"$f":"+'Cover Page'!$B$29","v":"Annual Performance Report 2023"},null,null,null,{"$f":"+'Cover Page'!$B$33","v":"Cornwall Energy Recovery Centre"}]
[]
["Emissions to Air (periodically monitored)"]
[]
["Summary of monitoring undertaken, standards used and compliance",null,null,null,null,null,null,null,null,null,"Notes:"]
["The compliance monitoring visits were carried out during April and September 2023. There were no non-compliances identified during either visit.",null,null,null,null,null,null,null,null,null,"Template may require adjustment for any bespoke monitoring requirements of permit - please also check that all default ELV values, reference periods and the stated oxygen reference value match those for your plant, and edit if necessary!"]
[]
[]
["Results of emissions to air that are periodically monitored - oxygen reference 6% "]
["Substance",null,"Ref. Period","Emission Limit Value*",null,"Average",null,null,null,null,"User to add additional tables as necessary, depending on whether quarterly or bi-annual reporting is required for the compliance year"]
[null,null,null,null,null,"A1","A2","A3","A4","A5"]
["Hydrogen fluoride",null,"1 hr","2 mg/m3",null,3.7999999999999999E-2,3.6500000000000005E-2]
["Cd and Th and their compounds",null,"0.5-8hrs","0.05 mg/m3",null,1.2999999999999999E-3,1.5500000000000002E-3]
["Hg and its compounds",null,"0.5-8hrs","0.05 mg/m3",null,1.7000000000000001E-3,8.3499999999999998E-3,null,null,null,"* Denotes limits that were in force until 2 December 2023; from 3 December 2023 the following new limits applied (those not listed remained unchanged):"]
["Sb, As, Pb, Cr, Co, Cu, Mn, Ni, V and their compounds",null,"0.5-8hrs","0.5 mg/m3",null,0.15534999999999999,2.9499999999999998E-2]
["Dioxins & Furans (I-TEQ)",null,"6-8hrs","0.1 ng/m3",null,7.7999999999999996E-3,4.6300000000000001E-2,null,null,null,"Substance","Reference Period","Emission Limit Value"]
["PCBs (WHO-TEQ Humans / Mammals)",null,"6-8hrs","None set ng/m3",null,3.6699999999999998E-4,4.1234999999999996E-3]
["PCBs (WHO-TEQ Fish)",null,"6-8hrs","None set ng/m3",null,1.5500000000000001E-5,1.7249999999999999E-4,null,null,null,"Hydrogen fluoride","Average of three consecutive measurements of at least 30 minutes each","1 mg/m3"]
["PCBs (WHO-TEQ Birds)",null,"6-8hrs","None set ng/m3",null,7.7999999999999999E-4,5.1615000000000003E-3,null,null,null,"Cd and Th and their compounds","Average of three consecutive measurements of at least 30 minutes each","0.02 mg/m3"]
["Dioxins & Furans (WHO-TEQ Humans / Mammals)",null,"6-8hrs","None set ng/m3",null,7.45E-3,4.725E-2,null,null,null,"Hg and its compounds","Average of three consecutive measurements of at least 30 minutes each","0.02 mg/m3"]
["Dioxins & Furans (WHO-TEQ Fish)",null,"6-8hrs","None set ng/m3",null,8.3999999999999995E-3,5.3999999999999999E-2,null,null,null,"Sb, As, Pb, Cr, Co, Cu, Mn, Ni, V and their compounds","Average of three consecutive measurements of at least 30 minutes each","0.3 mg/m3"]
["Dioxins & Furans (WHO-TEQ Birds)",null,"6-8hrs","None set ng/m3",null,1.2750000000000001E-2,7.5300000000000006E-2,null,null,null,"Dioxins & Furans (I-TEQ)","6-8hrs","0.06 ng/m3"]
["Anthanthrene",null,"6-8hrs","None set µg/m3",null,2.1999999999999997E-3,1.5499999999999999E-3]
["Benzo(a)anthracene",null,"6-8hrs","None set µg/m3",null,1.4E-3,1.5999999999999999E-3]
["Benzo(a)pyrene",null,"6-8hrs","None set µg/m3",null,4.5000000000000005E-3,1.5499999999999999E-3]
["Benzo(b)fluoranthene",null,"6-8hrs","None set µg/m3",null,3.2499999999999999E-3,2.5500000000000002E-3]
["Benzo(b)naptho(2,1-d) thiophene",null,"6-8hrs","None set µg/m3",null,1.3500000000000001E-3,1.5499999999999999E-3]
["Benzo(c)phenanthrene",null,"6-8hrs","None set µg/m3",null,1.3500000000000001E-3,1.5499999999999999E-3]
["Benzo(ghi)perylene",null,"6-8hrs","None set µg/m3",null,9.4000000000000004E-3,1.5499999999999999E-3]
["Benzo(k)fluoranthene",null,"6-8hrs","None set µg/m3",null,1.5E-3,1.5499999999999999E-3]
["Cholanthrene",null,"6-8hrs","None set µg/m3",null,1.3500000000000001E-3,1.5499999999999999E-3]
["Chrysene",null,"6-8hrs","None set µg/m3",null,1.9E-3,3.65E-3]
["Cyclopenta(cd)pyrene",null,"6-8hrs","None set µg/m3",null,6.6999999999999994E-3,1.5499999999999999E-3]
["Dibenzo(ai)pyrene",null,"6-8hrs","None set µg/m3",null,1.3500000000000001E-3,1.5499999999999999E-3]
["Dibenzo(ah)anthracene",null,"6-8hrs","None set µg/m3",null,1.3500000000000001E-3,1.5499999999999999E-3]
["Fluoranthene",null,"6-8hrs","None set µg/m3",null,3.4799999999999998E-2,1.09E-2]
["Indeno(123-cd) pyrene",null,"6-8hrs","None set µg/m3",null,3.3500000000000001E-3,1.5499999999999999E-3]
["Naphthalene",null,"6-8hrs","None set µg/m3",null,1.1147499999999999,1.17245]
["Comments :"]
["The average result is calculated from the reported values for the H1 and H2 compliance monitoring campaigns. Where results are reported at the laboratory limit of detection the < qualifier is removed for calculation of the average emission as a conservative measure. Where the average has been calculated in this way the reported value is highlighted bold."]

{"sheet":"Air (CEMS)","index":14,"n_rows":28,"n_cols":16,"rows_kept":28,"cut":false,"hidden":false,"merged":[[12,13,13,13],[12,14,13,14],[12,15,13,15],[10,13,11,15],[19,0,20,0],[21,0,22,0],[23,0,24,0],[27,0,28,12],[11,0,12,0],[5,0,6,12],[8,0,8,12],[9,0,10,0],[9,2,10,2],[9,1,10,1],[9,3,9,4],[9,5,9,6],[9,7,9,8],[9,9,9,10],[9,11,9,12],[13,0,14,0],[15,0,16,0],[17,0,18,0]]}
[{"$f":"+'Cover Page'!$B$29","v":"Annual Performance Report 2023"},null,null,null,null,null,null,null,{"$f":"+'Cover Page'!$B$33","v":"Cornwall Energy Recovery Centre"}]
[]
["Emissions to Air (continously monitored)"]
[null,null,null,null,null,null,null,null,null,null,null,null,null,"Notes:"]
["Summary of monitoring undertaken, standards used and compliance",null,null,null,null,null,null,null,null,null,null,null,null,"Template may require adjustment for any bespoke monitoring requirements of permit"]
["The CEMS set up comprises a multigas analyser, FID analyser and then the oxygen probe for extractive sampling where flue gases are drawn continuously via a heated line to the analysers in the CEMS room for each incineration line. In situ sampling i.e. where the probes are installed directly into the flue gas flow in the stack is for the dust probes only. The set up for the duty analysers is mirrored by the standby analysers. The standby analysers can be switched between incineration Lines 1 and 2 as required. Continuous monitoring is provided by the CEMS as required by the permit. The CEMS are installed in accordance with EN14181 and relevant Environment Agency guidance.",null,null,null,null,null,null,null,null,null,null,null,null,"Please check that all default ELV values match those for your plant and edit if necessary!"]
[null,null,null,null,null,null,null,null,null,null,null,null,null,"Report to 1 decimal place"]
[]
["Results of emissions to air that are continuously monitored (maximum and average values for each line) - oxygen reference 11%"]
["Substance","Reference Period","Emission Limit Value","A1",null,"A2",null,"A3",null,"A4",null,"A5"]
[null,null,null,"Max.","Avg.","Max.","Avg.","Max.","Avg.","Max.","Avg.","Max.","Avg.","** Denotes limits that were in force until 2 December 2023; from 3 December 2023 the following new limits applied (those not listed remained unchanged):"]
["Oxides of nitrogen","Daily mean","200 mg/m3 ",{"$f":"NOx!$O$19","v":152},{"$f":"NOx!$N$19","v":130.94166666666666},{"$f":"NOx!$O$34","v":151},{"$f":"NOx!$N$34","v":141.01666666666665}]
[null,"½ hourly mean","400 mg/m3 ",{"$f":"NOx!$M$19","v":184},{"$f":"NOx!$L$19","v":130.45000000000002},{"$f":"NOx!$M$34","v":204},{"$f":"NOx!$L$34","v":140.10833333333332},null,null,null,null,null,null,"Substance","Reference Period","Emission Limit Value"]
["Particulates","Daily mean","10 mg/m3",{"$f":"Particulates!$O$19","v":4.4000000000000004},{"$f":"Particulates!$N$19","v":0.91833333333333333},{"$f":"Particulates!$O$34","v":3.5},{"$f":"Particulates!$N$34","v":0.37166666666666665}]
[null,"½ hourly mean","30 mg/m3 ",{"$f":"Particulates!$M$19","v":64.3},{"$f":"Particulates!$L$19","v":0.92499999999999993},{"$f":"Particulates!$M$34","v":24.4},{"$f":"Particulates!$L$34","v":0.38333333333333336},null,null,null,null,null,null,"Oxides of nitrogen","Daily mean","180 mg/m3 "]
["Total Organic Carbon ","Daily mean","10 mg/m3 ",{"$f":"TOC!$O$19","v":0.8},{"$f":"TOC!$N$19","v":0.3808333333333333},{"$f":"TOC!$O$34","v":1.9},{"$f":"TOC!$N$34","v":0.30666666666666664},null,null,null,null,null,null,"Particulates","Daily mean","5 mg/m3 "]
[null,"½ hourly mean","20 mg/m3 ",{"$f":"TOC!$M$19","v":6.6},{"$f":"TOC!$L$19","v":0.39166666666666661},{"$f":"TOC!$M$34","v":17.7},{"$f":"TOC!$L$34","v":0.34166666666666662},null,null,null,null,null,null,"Hydrogen chloride","Daily mean","8 mg/m3 "]
["Hydrogen chloride ","Daily mean","10 mg/m3 ",{"$f":"HCl!$O$19","v":10},{"$f":"HCl!$N$19","v":7.8500000000000005},{"$f":"HCl!$O$34","v":9},{"$f":"HCl!$N$34","v":7.9083333333333323},null,null,null,null,null,null,"Sulphur dioxide","Daily mean","40 mg/m3 "]
[null,"½ hourly mean","60 mg/m3 ",{"$f":"HCl!$M$19","v":51},{"$f":"HCl!$L$19","v":7.833333333333333},{"$f":"HCl!$M$34","v":32},{"$f":"HCl!$L$34","v":7.75},null,null,null,null,null,null,"Ammonia","Daily mean","15 mg/m3 "]
["Sulphur dioxide","Daily mean","50 mg/m3 ",{"$f":"'SO2'!$O$19","v":20},{"$f":"'SO2'!$N$19","v":10.75},{"$f":"'SO2'!$O$34","v":20},{"$f":"'SO2'!$N$34","v":10.850000000000001}]
[null,"½ hourly mean","200 mg/m3 ",{"$f":"'SO2'!$M$19","v":154},{"$f":"'SO2'!$L$19","v":10.833333333333334},{"$f":"'SO2'!$M$34","v":167},{"$f":"'SO2'!$L$34","v":10.916666666666666}]
["Carbon monoxide ","Daily mean","50 mg/m3 ",{"$f":"'CO 95% 10 min'!Q19","v":9.8000000000000007},{"$f":"'CO 95% 10 min'!P19","v":2.0266666666666668},{"$f":"'CO 95% 10 min'!Q34","v":13.9},{"$f":"'CO 95% 10 min'!P34","v":4.0666666666666673}]
[null,"95%ile 10-min avg","150 mg/m3",{"$f":"MAX('CO 95% 10 min'!M7:M18)","v":9.5},{"$f":"AVERAGE('CO 95% 10 min'!M7:M18)","v":5.1000000000000005},{"$f":"MAX('CO 95% 10 min'!M22:M33)","v":32},{"$f":"AVERAGE('CO 95% 10 min'!M22:M33)","v":8.2333333333333325}]
["Hydrogen Fluoride","Daily mean","1 mg/m3 ",{"$f":"HF!O19","v":0.2},{"$f":"HF!N19","v":0},{"$f":"HF!M19","v":1.8},{"$f":"HF!L19","v":0}]
[null,"½ hourly mean","4 mg/m3",{"$f":"HF!O34","v":0.4},{"$f":"HF!N34","v":4.6666666666666671E-3},{"$f":"HF!M34","v":0.8},{"$f":"HF!L34","v":0}]
[" Ammonia","Daily mean","10 mg/m3",{"$f":"'NH3'!$O$19","v":0.4},{"$f":"'NH3'!$N$19","v":7.1666666666666658E-3},{"$f":"'NH3'!$O$34","v":0.1},{"$f":"'NH3'!$N$34","v":0}]
["Comments :"]
["The BREF ammonia (NH3) daily emission limit of 15mg/m3 was not applied as of the 03/12/2023 as the site already had an existing daily limit for ammonia that was lower than the proposed BREF limit."]

{"sheet":"HCl","index":15,"n_rows":79,"n_cols":17,"rows_kept":79,"cut":false,"hidden":false,"merged":[[12,16,15,18],[51,9,63,9],[66,9,78,9],[4,9,4,14],[4,1,4,3],[4,4,4,6],[48,0,51,6],[47,0,47,6],[6,9,18,9],[21,9,33,9],[36,9,48,9],[3,16,7,18],[9,16,11,18],[18,4,18,6]]}
[{"$f":"+'Cover Page'!$B$29","v":"Annual Performance Report 2023"},null,null,null,{"$f":"+'Cover Page'!$B$33","v":"Cornwall Energy Recovery Centre"}]
[]
["Monitoring of Hydrogen Chloride emissions",null,null,"Whole Installation",null,null,"See  Notes in Cell Q3",null,null,{"$f":"+A3","v":"Monitoring of Hydrogen Chloride emissions"},null,null,null,"Per Combustion Line",null,null,"Notes:"]
[null,null,null,null,null,null,null,null,null,null,null,null,null,null,null,null,"User to add logic to complete Whole installation, Table A5:G18. From the data in Per Combustion Line, Table J6:O79, subject to No. of lines installed"]
["mg/Nm3","1/2 Hourly Reference Periods",null,null,"Daily Reference Periods"]
[{"$f":"+'Cover Page'!C39","v":2023},"1/2 hourly HCl ELV","Monthly 1/2 hourly mean","Highest 1/2 hourly maximum","Daily HCl ELV*","Monthly daily mean","Highest daily maximum",null,null,{"$f":"+A6","v":2023},"mg/Nm3","Monthly 1/2 hourly mean","Monthly 1/2 hourly maximum","Monthly daily mean","Monthly daily maximum"]
["Jan",60,{"$f":"AVERAGE(L7,L22,L37,L52,L67)","v":8},{"$f":"MAX(M7,M22,M37,M52,M67)","v":14},10,{"$f":"AVERAGE(N7,N22,N37,N52,N67)","v":8},{"$f":"MAX(O7,O22,O37,O52,O67)","v":9},null,null,"A1","Jan",8,14,8.4,9]
["Feb",60,{"$f":"AVERAGE(L8,L23,L38,L53,L68)","v":8.5},{"$f":"MAX(M8,M23,M38,M53,M68)","v":13},10,{"$f":"AVERAGE(N8,N23,N38,N53,N68)","v":8.6},{"$f":"MAX(O8,O23,O38,O53,O68)","v":10},null,null,null,"Feb",9,13,9,10]
["Mar",60,8.5,21,10,8.5500000000000007,10,null,null,null,"Mar",9,21,8.6999999999999993,10,null,"Whole Installation table A5:G18:"]
["Apr",60,8,15,10,8.25,9,null,null,null,"Apr",8,13,8,8,null,"Mean: for 1/2 hourly and daily periods calculate mean of values across all operational combustion lines for the month"]
["May",60,7.5,35,10,7.9,10,null,null,null,"May",7,35,7.2,10]
["Jun",60,8,14,10,7.9,9,null,null,null,"Jun",8,14,7.9,8]
["Jul",60,7.5,19,10,7.5500000000000007,9,null,null,null,"Jul",7,12,7.4,8,null,"Maximum: for 1/2 hourly and daily periods use the highest value across all operational combustion lines for the month"]
["Aug",60,8,14,10,8.15,9,null,null,null,"Aug",8,14,8,8]
["Sep",60,8,13,10,7.9499999999999993,9,null,null,null,"Sep",8,13,7.8,8]
["Oct",60,8,32,10,8.15,9,null,null,null,"Oct",8,13,8,8]
["Nov",60,7,51,10,6.85,8,null,null,null,"Nov",7,51,6.9,8]
["Dec",60,6.5,15,8,6.7,7,null,null,null,"Dec",7,9,6.9,7]
[null,null,null,null,"* ELV reduced to 8 mg/Nm3 on 3 December 2023",null,null,null,null,null,"Annual",{"$f":"AVERAGE(L7:L18)","v":7.833333333333333},{"$f":"MAX(M7:M18)","v":51},{"$f":"AVERAGE(N7:N18)","v":7.8500000000000005},{"$f":"MAX(O7:O18)","v":10}]
[]
[null,null,null,null,null,null,null,null,null,{"$f":"+A6","v":2023},"mg/Nm3","Monthly 1/2 hourly mean","Monthly 1/2 hourly maximum","Monthly daily mean","Monthly daily maximum"]
[null,null,null,null,null,null,null,null,null,"A2","Jan",8,11,7.6,8]
[null,null,null,null,null,null,null,null,null,null,"Feb",8,12,8.1999999999999993,9]
[null,null,null,null,null,null,null,null,null,null,"Mar",8,14,8.4,9]
[null,null,null,null,null,null,null,null,null,null,"Apr",8,15,8.5,9]
[null,null,null,null,null,null,null,null,null,null,"May",8,11,8.6,9]
[null,null,null,null,null,null,null,null,null,null,"Jun",8,11,7.9,9]
[null,null,null,null,null,null,null,null,null,null,"Jul",8,19,7.7,9]
[null,null,null,null,null,null,null,null,null,null,"Aug",8,12,8.3000000000000007,9]
[null,null,null,null,null,null,null,null,null,null,"Sep",8,12,8.1,9]
[null,null,null,null,null,null,null,null,null,null,"Oct",8,32,8.3000000000000007,9]
[null,null,null,null,null,null,null,null,null,null,"Nov",7,30,6.8,7]
[null,null,null,null,null,null,null,null,null,null,"Dec",6,15,6.5,7]
[null,null,null,null,null,null,null,null,null,null,"Annual",{"$f":"AVERAGE(L22:L33)","v":7.75},{"$f":"MAX(M22:M33)","v":32},{"$f":"AVERAGE(N22:N33)","v":7.9083333333333323},{"$f":"MAX(O22:O33)","v":9}]
[]
[null,null,null,null,null,null,null,null,null,{"$f":"+A6","v":2023},"mg/Nm3","Monthly 1/2 hourly mean","Monthly 1/2 hourly maximum","Monthly daily mean","Monthly daily maximum"]
[null,null,null,null,null,null,null,null,null,"A3","Jan"]
[null,null,null,null,null,null,null,null,null,null,"Feb"]
[null,null,null,null,null,null,null,null,null,null,"Mar"]
[null,null,null,null,null,null,null,null,null,null,"Apr"]
[null,null,null,null,null,null,null,null,null,null,"May"]
[null,null,null,null,null,null,null,null,null,null,"Jun"]
[null,null,null,null,null,null,null,null,null,null,"Jul"]
[null,null,null,null,null,null,null,null,null,null,"Aug"]
[null,null,null,null,null,null,null,null,null,null,"Sep"]
[null,null,null,null,null,null,null,null,null,null,"Oct"]
[null,null,null,null,null,null,null,null,null,null,"Nov"]
["Comments :",null,null,null,null,null,null,null,null,null,"Dec"]
[null,null,null,null,null,null,null,null,null,null,"Annual",{"$f":"AVERAGE(L37:L48)","v":{"$error":"#DIV/0!"}},{"$f":"MAX(M37:M48)","v":0},{"$f":"AVERAGE(N37:N48)","v":{"$error":"#DIV/0!"}},{"$f":"MAX(O37:O48)","v":0}]
[]
[null,null,null,null,null,null,null,null,null,{"$f":"+A6","v":2023},"mg/Nm3","Monthly 1/2 hourly mean","Monthly 1/2 hourly maximum","Monthly daily mean","Monthly daily maximum"]
[null,null,null,null,null,null,null,null,null,"A4","Jan"]
[null,null,null,null,null,null,null,null,null,null,"Feb"]
[null,null,null,null,null,null,null,null,null,null,"Mar"]
[null,null,null,null,null,null,null,null,null,null,"Apr"]
[null,null,null,null,null,null,null,null,null,null,"May"]
[null,null,null,null,null,null,null,null,null,null,"Jun"]
[null,null,null,null,null,null,null,null,null,null,"Jul"]
[null,null,null,null,null,null,null,null,null,null,"Aug"]
[null,null,null,null,null,null,null,null,null,null,"Sep"]
[null,null,null,null,null,null,null,null,null,null,"Oct"]
[null,null,null,null,null,null,null,null,null,null,"Nov"]
[null,null,null,null,null,null,null,null,null,null,"Dec"]
[null,null,null,null,null,null,null,null,null,null,"Annual",{"$f":"AVERAGE(L52:L63)","v":{"$error":"#DIV/0!"}},{"$f":"MAX(M52:M63)","v":0},{"$f":"AVERAGE(N52:N63)","v":{"$error":"#DIV/0!"}},{"$f":"MAX(O52:O63)","v":0}]
[]
[null,null,null,null,null,null,null,null,null,{"$f":"+A6","v":2023},"mg/Nm3","Monthly 1/2 hourly mean","Monthly 1/2 hourly maximum","Monthly daily mean","Monthly daily maximum"]
[null,null,null,null,null,null,null,null,null,"A5","Jan"]
[null,null,null,null,null,null,null,null,null,null,"Feb"]
[null,null,null,null,null,null,null,null,null,null,"Mar"]
[null,null,null,null,null,null,null,null,null,null,"Apr"]
[null,null,null,null,null,null,null,null,null,null,"May"]
[null,null,null,null,null,null,null,null,null,null,"Jun"]
[null,null,null,null,null,null,null,null,null,null,"Jul"]
[null,null,null,null,null,null,null,null,null,null,"Aug"]
[null,null,null,null,null,null,null,null,null,null,"Sep"]
[null,null,null,null,null,null,null,null,null,null,"Oct"]
[null,null,null,null,null,null,null,null,null,null,"Nov"]
[null,null,null,null,null,null,null,null,null,null,"Dec"]
[null,null,null,null,null,null,null,null,null,null,"Annual",{"$f":"AVERAGE(L67:L78)","v":{"$error":"#DIV/0!"}},{"$f":"MAX(M67:M78)","v":0},{"$f":"AVERAGE(N67:N78)","v":{"$error":"#DIV/0!"}},{"$f":"MAX(O67:O78)","v":0}]

{"sheet":"SO2","index":16,"n_rows":79,"n_cols":17,"rows_kept":79,"cut":false,"hidden":false,"merged":[[3,16,7,18],[9,16,11,18],[12,16,15,18],[66,9,78,9],[4,1,4,3],[4,4,4,6],[4,9,4,14],[6,9,18,9],[21,9,33,9],[36,9,48,9],[47,0,47,6],[48,0,51,6],[51,9,63,9],[18,4,18,6]]}
[{"$f":"+'Cover Page'!$B$29","v":"Annual Performance Report 2023"},null,null,null,{"$f":"+'Cover Page'!$B$33","v":"Cornwall Energy Recovery Centre"}]
[]
["Monitoring of Sulphur dioxide emissions",null,null,"Whole Installation",null,null,"See  Notes in Cell Q3",null,null,{"$f":"+A3","v":"Monitoring of Sulphur dioxide emissions"},null,null,null,"Per Combustion Line",null,null,"Notes:"]
[null,null,null,null,null,null,null,null,null,null,null,null,null,null,null,null,"User to add logic to complete Whole installation, Table A5:G18. From the data in Per Combustion Line, Table J6:O79, subject to No. of lines installed"]
["mg/Nm3","1/2 Hourly Reference Periods",null,null,"Daily Reference Periods"]
[{"$f":"+'Cover Page'!C39","v":2023},"1/2 hourly SO2 ELV","Monthly 1/2 hourly mean","Highest 1/2 hourly maximum","Daily SO2 ELV*","Monthly daily mean","Highest daily maximum",null,null,{"$f":"+A6","v":2023},"mg/Nm3","Monthly 1/2 hourly mean","Monthly 1/2 hourly maximum","Monthly daily mean","Monthly daily maximum"]
["Jan",200,{"$f":"AVERAGE(L7,L22,L37,L52,L67)","v":11.5},{"$f":"MAX(M7,M22,M37,M52,M67)","v":31},50,{"$f":"AVERAGE(N7,N22,N37,N52,N67)","v":11.600000000000001},{"$f":"MAX(O7,O22,O37,O52,O67)","v":17},null,null,"A1","Jan",12,31,11.9,17]
["Feb",200,{"$f":"AVERAGE(L8,L23,L38,L53,L68)","v":11.5},{"$f":"MAX(M8,M23,M38,M53,M68)","v":104},50,{"$f":"AVERAGE(N8,N23,N38,N53,N68)","v":11.55},{"$f":"MAX(O8,O23,O38,O53,O68)","v":19},null,null,null,"Feb",11,104,10.9,15]
["Mar",200,15.5,78,50,15.15,20,null,null,null,"Mar",15,78,14.5,20,null,"Whole Installation table A5:G18:"]
["Apr",200,8.5,21,50,8.5,13,null,null,null,"Apr",9,18,9.4,13,null,"Mean: for 1/2 hourly and daily periods calculate mean of values across all operational combustion lines for the month"]
["May",200,9.5,98,50,9.1000000000000014,20,null,null,null,"May",12,98,11.8,20]
["Jun",200,14.5,62,50,14.3,19,null,null,null,"Jun",13,43,12.9,18]
["Jul",200,12.5,66,50,12.3,18,null,null,null,"Jul",12,33,11.7,17,null,"Maximum: for 1/2 hourly and daily periods use the highest value across all operational combustion lines for the month"]
["Aug",200,8.5,25,50,8.9499999999999993,15,null,null,null,"Aug",8,18,8.4,10]
["Sep",200,8.5,22,50,8.3000000000000007,12,null,null,null,"Sep",9,19,8.6999999999999993,12]
["Oct",200,9.5,167,50,9.1999999999999993,14,null,null,null,"Oct",10,34,9.6999999999999993,12]
["Nov",200,10.5,154,50,10.5,17,null,null,null,"Nov",11,154,10.6,17]
["Dec",200,10,33,40,10.15,17,null,null,null,"Dec",8,27,8.5,17]
[null,null,null,null,"* ELV reduced to 40 mg/Nm3 on 3 December 2023",null,null,null,null,null,"Annual",{"$f":"AVERAGE(L7:L18)","v":10.833333333333334},{"$f":"MAX(M7:M18)","v":154},{"$f":"AVERAGE(N7:N18)","v":10.75},{"$f":"MAX(O7:O18)","v":20}]
[]
[null,null,null,null,null,null,null,null,null,{"$f":"+A6","v":2023},"mg/Nm3","Monthly 1/2 hourly mean","Monthly 1/2 hourly maximum","Monthly daily mean","Monthly daily maximum"]
[null,null,null,null,null,null,null,null,null,"A2","Jan",11,23,11.3,15]
[null,null,null,null,null,null,null,null,null,null,"Feb",12,27,12.2,19]
[null,null,null,null,null,null,null,null,null,null,"Mar",16,53,15.8,20]
[null,null,null,null,null,null,null,null,null,null,"Apr",8,21,7.6,10]
[null,null,null,null,null,null,null,null,null,null,"May",7,21,6.4,10]
[null,null,null,null,null,null,null,null,null,null,"Jun",16,62,15.7,19]
[null,null,null,null,null,null,null,null,null,null,"Jul",13,66,12.9,18]
[null,null,null,null,null,null,null,null,null,null,"Aug",9,25,9.5,15]
[null,null,null,null,null,null,null,null,null,null,"Sep",8,22,7.9,11]
[null,null,null,null,null,null,null,null,null,null,"Oct",9,167,8.6999999999999993,14]
[null,null,null,null,null,null,null,null,null,null,"Nov",10,150,10.4,17]
[null,null,null,null,null,null,null,null,null,null,"Dec",12,33,11.8,16]
[null,null,null,null,null,null,null,null,null,null,"Annual",{"$f":"AVERAGE(L22:L33)","v":10.916666666666666},{"$f":"MAX(M22:M33)","v":167},{"$f":"AVERAGE(N22:N33)","v":10.850000000000001},{"$f":"MAX(O22:O33)","v":20}]
[]
[null,null,null,null,null,null,null,null,null,{"$f":"+A6","v":2023},"mg/Nm3","Monthly 1/2 hourly mean","Monthly 1/2 hourly maximum","Monthly daily mean","Monthly daily maximum"]
[null,null,null,null,null,null,null,null,null,"A3","Jan"]
[null,null,null,null,null,null,null,null,null,null,"Feb"]
[null,null,null,null,null,null,null,null,null,null,"Mar"]
[null,null,null,null,null,null,null,null,null,null,"Apr"]
[null,null,null,null,null,null,null,null,null,null,"May"]
[null,null,null,null,null,null,null,null,null,null,"Jun"]
[null,null,null,null,null,null,null,null,null,null,"Jul"]
[null,null,null,null,null,null,null,null,null,null,"Aug"]
[null,null,null,null,null,null,null,null,null,null,"Sep"]
[null,null,null,null,null,null,null,null,null,null,"Oct"]
[null,null,null,null,null,null,null,null,null,null,"Nov"]
["Comments :",null,null,null,null,null,null,null,null,null,"Dec"]
[null,null,null,null,null,null,null,null,null,null,"Annual",{"$f":"AVERAGE(L37:L48)","v":{"$error":"#DIV/0!"}},{"$f":"MAX(M37:M48)","v":0},{"$f":"AVERAGE(N37:N48)","v":{"$error":"#DIV/0!"}},{"$f":"MAX(O37:O48)","v":0}]
[]
[null,null,null,null,null,null,null,null,null,{"$f":"+A6","v":2023},"mg/Nm3","Monthly 1/2 hourly mean","Monthly 1/2 hourly maximum","Monthly daily mean","Monthly daily maximum"]
[null,null,null,null,null,null,null,null,null,"A4","Jan"]
[null,null,null,null,null,null,null,null,null,null,"Feb"]
[null,null,null,null,null,null,null,null,null,null,"Mar"]
[null,null,null,null,null,null,null,null,null,null,"Apr"]
[null,null,null,null,null,null,null,null,null,null,"May"]
[null,null,null,null,null,null,null,null,null,null,"Jun"]
[null,null,null,null,null,null,null,null,null,null,"Jul"]
[null,null,null,null,null,null,null,null,null,null,"Aug"]
[null,null,null,null,null,null,null,null,null,null,"Sep"]
[null,null,null,null,null,null,null,null,null,null,"Oct"]
[null,null,null,null,null,null,null,null,null,null,"Nov"]
[null,null,null,null,null,null,null,null,null,null,"Dec"]
[null,null,null,null,null,null,null,null,null,null,"Annual",{"$f":"AVERAGE(L52:L63)","v":{"$error":"#DIV/0!"}},{"$f":"MAX(M52:M63)","v":0},{"$f":"AVERAGE(N52:N63)","v":{"$error":"#DIV/0!"}},{"$f":"MAX(O52:O63)","v":0}]
[]
[null,null,null,null,null,null,null,null,null,{"$f":"+A6","v":2023},"mg/Nm3","Monthly 1/2 hourly mean","Monthly 1/2 hourly maximum","Monthly daily mean","Monthly daily maximum"]
[null,null,null,null,null,null,null,null,null,"A5","Jan"]
[null,null,null,null,null,null,null,null,null,null,"Feb"]
[null,null,null,null,null,null,null,null,null,null,"Mar"]
[null,null,null,null,null,null,null,null,null,null,"Apr"]
[null,null,null,null,null,null,null,null,null,null,"May"]
[null,null,null,null,null,null,null,null,null,null,"Jun"]
[null,null,null,null,null,null,null,null,null,null,"Jul"]
[null,null,null,null,null,null,null,null,null,null,"Aug"]
[null,null,null,null,null,null,null,null,null,null,"Sep"]
[null,null,null,null,null,null,null,null,null,null,"Oct"]
[null,null,null,null,null,null,null,null,null,null,"Nov"]
[null,null,null,null,null,null,null,null,null,null,"Dec"]
[null,null,null,null,null,null,null,null,null,null,"Annual",{"$f":"AVERAGE(L67:L78)","v":{"$error":"#DIV/0!"}},{"$f":"MAX(M67:M78)","v":0},{"$f":"AVERAGE(N67:N78)","v":{"$error":"#DIV/0!"}},{"$f":"MAX(O67:O78)","v":0}]

{"sheet":"NOx","index":17,"n_rows":79,"n_cols":17,"rows_kept":79,"cut":false,"hidden":false,"merged":[[3,16,7,18],[9,16,11,18],[12,16,15,18],[66,9,78,9],[4,1,4,3],[4,4,4,6],[4,9,4,14],[6,9,18,9],[21,9,33,9],[36,9,48,9],[47,0,47,6],[48,0,51,6],[51,9,63,9],[18,4,18,6]]}
[{"$f":"+'Cover Page'!$B$29","v":"Annual Performance Report 2023"},null,null,null,{"$f":"+'Cover Page'!$B$33","v":"Cornwall Energy Recovery Centre"}]
[]
["Monitoring of Oxides of Nitrogen emissions",null,null,"Whole Installation",null,null,"See  Notes in Cell Q3",null,null,{"$f":"+A3","v":"Monitoring of Oxides of Nitrogen emissions"},null,null,null,"Per Combustion Line",null,null,"Notes:"]
[null,null,null,null,null,null,null,null,null,null,null,null,null,null,null,null,"User to add logic to complete Whole installation, Table A5:G18. From the data in Per Combustion Line, Table J6:O79, subject to No. of lines installed"]
["mg/Nm3","1/2 Hourly Reference Periods",null,null,"Daily Reference Periods"]
[{"$f":"+'Cover Page'!C39","v":2023},"1/2 hourly NOx ELV","Monthly 1/2 hourly mean","Highest 1/2 hourly maximum","Daily NOx ELV*","Monthly daily mean","Highest daily maximum",null,null,{"$f":"+A6","v":2023},"mg/Nm3","Monthly 1/2 hourly mean","Monthly 1/2 hourly maximum","Monthly daily mean","Monthly daily maximum"]
["Jan",400,{"$f":"AVERAGE(L7,L22,L37,L52,L67)","v":135.30000000000001},{"$f":"MAX(M7,M22,M37,M52,M67)","v":184},200,{"$f":"AVERAGE(N7,N22,N37,N52,N67)","v":135.4},{"$f":"MAX(O7,O22,O37,O52,O67)","v":144},null,null,"A1","Jan",135.5,184,135.5,142]
["Feb",400,{"$f":"AVERAGE(L8,L23,L38,L53,L68)","v":125.25},{"$f":"MAX(M8,M23,M38,M53,M68)","v":148},200,{"$f":"AVERAGE(N8,N23,N38,N53,N68)","v":126.25},{"$f":"MAX(O8,O23,O38,O53,O68)","v":135},null,null,null,"Feb",121.8,148,121.8,135]
["Mar",400,138.5,169,200,138.55000000000001,152,null,null,null,"Mar",138.4,169,138.4,152,null,"Whole Installation table A5:G18:"]
["Apr",400,138.35,163,200,138.30000000000001,149,null,null,null,"Apr",132.19999999999999,156,132.1,140,null,"Mean: for 1/2 hourly and daily periods calculate mean of values across all operational combustion lines for the month"]
["May",400,125.5,153,200,128.35,141,null,null,null,"May",119,153,121.6,133]
["Jun",400,134.75,167,200,136.19999999999999,151,null,null,null,"Jun",129.1,151,129.19999999999999,135]
["Jul",400,136.6,159,200,137,145,null,null,null,"Jul",131,156,131.30000000000001,135,null,"Maximum: for 1/2 hourly and daily periods use the highest value across all operational combustion lines for the month"]
["Aug",400,133.19999999999999,204,200,133.19999999999999,147,null,null,null,"Aug",126.6,154,126.6,130]
["Sep",400,{"$f":"AVERAGE(L15,L30,L45,L60,L75)","v":137.30000000000001},{"$f":"MAX(M15,M30,M45,M60,M75)","v":160},200,{"$f":"AVERAGE(N15,N30,N45,N60,N75)","v":139.10000000000002},{"$f":"MAX(O15,O30,O45,O60,O75)","v":151},null,null,null,"Sep",132.5,153,134.4,141]
["Oct",400,142.10000000000002,171,200,142.05000000000001,149,null,null,null,"Oct",136.9,155,136.80000000000001,139]
["Nov",400,141.44999999999999,161,200,141.44999999999999,148,null,null,null,"Nov",137.6,161,137.6,147]
["Dec",400,135.05000000000001,164,180,135.9,149,null,null,null,"Dec",124.8,148,126,135]
[null,null,null,null,"* ELV reduced to 180 mg/Nm3 on 3 December 2023",null,null,null,null,null,"Annual",{"$f":"AVERAGE(L7:L18)","v":130.45000000000002},{"$f":"MAX(M7:M18)","v":184},{"$f":"AVERAGE(N7:N18)","v":130.94166666666666},{"$f":"MAX(O7:O18)","v":152}]
[]
[null,null,null,null,null,null,null,null,null,{"$f":"+A6","v":2023},"mg/Nm3","Monthly 1/2 hourly mean","Monthly 1/2 hourly maximum","Monthly daily mean","Monthly daily maximum"]
[null,null,null,null,null,null,null,null,null,"A2","Jan",135.1,157,135.30000000000001,144]
[null,null,null,null,null,null,null,null,null,null,"Feb",128.69999999999999,147,130.69999999999999,135]
[null,null,null,null,null,null,null,null,null,null,"Mar",138.6,160,138.69999999999999,148]
[null,null,null,null,null,null,null,null,null,null,"Apr",144.5,163,144.5,149]
[null,null,null,null,null,null,null,null,null,null,"May",132,153,135.1,141]
[null,null,null,null,null,null,null,null,null,null,"Jun",140.4,167,143.19999999999999,151]
[null,null,null,null,null,null,null,null,null,null,"Jul",142.19999999999999,159,142.69999999999999,145]
[null,null,null,null,null,null,null,null,null,null,"Aug",139.80000000000001,204,139.80000000000001,147]
[null,null,null,null,null,null,null,null,null,null,"Sep",142.1,160,143.80000000000001,151]
[null,null,null,null,null,null,null,null,null,null,"Oct",147.30000000000001,171,147.30000000000001,149]
[null,null,null,null,null,null,null,null,null,null,"Nov",145.30000000000001,161,145.30000000000001,148]
[null,null,null,null,null,null,null,null,null,null,"Dec",145.30000000000001,164,145.80000000000001,149]
[null,null,null,null,null,null,null,null,null,null,"Annual",{"$f":"AVERAGE(L22:L33)","v":140.10833333333332},{"$f":"MAX(M22:M33)","v":204},{"$f":"AVERAGE(N22:N33)","v":141.01666666666665},{"$f":"MAX(O22:O33)","v":151}]
[]
[null,null,null,null,null,null,null,null,null,{"$f":"+A6","v":2023},"mg/Nm3","Monthly 1/2 hourly mean","Monthly 1/2 hourly maximum","Monthly daily mean","Monthly daily maximum"]
[null,null,null,null,null,null,null,null,null,"A3","Jan"]
[null,null,null,null,null,null,null,null,null,null,"Feb"]
[null,null,null,null,null,null,null,null,null,null,"Mar"]
[null,null,null,null,null,null,null,null,null,null,"Apr"]
[null,null,null,null,null,null,null,null,null,null,"May"]
[null,null,null,null,null,null,null,null,null,null,"Jun"]
[null,null,null,null,null,null,null,null,null,null,"Jul"]
[null,null,null,null,null,null,null,null,null,null,"Aug"]
[null,null,null,null,null,null,null,null,null,null,"Sep"]
[null,null,null,null,null,null,null,null,null,null,"Oct"]
[null,null,null,null,null,null,null,null,null,null,"Nov"]
["Comments :",null,null,null,null,null,null,null,null,null,"Dec"]
[null,null,null,null,null,null,null,null,null,null,"Annual",{"$f":"AVERAGE(L37:L48)","v":{"$error":"#DIV/0!"}},{"$f":"MAX(M37:M48)","v":0},{"$f":"AVERAGE(N37:N48)","v":{"$error":"#DIV/0!"}},{"$f":"MAX(O37:O48)","v":0}]
[]
[null,null,null,null,null,null,null,null,null,{"$f":"+A6","v":2023},"mg/Nm3","Monthly 1/2 hourly mean","Monthly 1/2 hourly maximum","Monthly daily mean","Monthly daily maximum"]
[null,null,null,null,null,null,null,null,null,"A4","Jan"]
[null,null,null,null,null,null,null,null,null,null,"Feb"]
[null,null,null,null,null,null,null,null,null,null,"Mar"]
[null,null,null,null,null,null,null,null,null,null,"Apr"]
[null,null,null,null,null,null,null,null,null,null,"May"]
[null,null,null,null,null,null,null,null,null,null,"Jun"]
[null,null,null,null,null,null,null,null,null,null,"Jul"]
[null,null,null,null,null,null,null,null,null,null,"Aug"]
[null,null,null,null,null,null,null,null,null,null,"Sep"]
[null,null,null,null,null,null,null,null,null,null,"Oct"]
[null,null,null,null,null,null,null,null,null,null,"Nov"]
[null,null,null,null,null,null,null,null,null,null,"Dec"]
[null,null,null,null,null,null,null,null,null,null,"Annual",{"$f":"AVERAGE(L52:L63)","v":{"$error":"#DIV/0!"}},{"$f":"MAX(M52:M63)","v":0},{"$f":"AVERAGE(N52:N63)","v":{"$error":"#DIV/0!"}},{"$f":"MAX(O52:O63)","v":0}]
[]
[null,null,null,null,null,null,null,null,null,{"$f":"+A6","v":2023},"mg/Nm3","Monthly 1/2 hourly mean","Monthly 1/2 hourly maximum","Monthly daily mean","Monthly daily maximum"]
[null,null,null,null,null,null,null,null,null,"A5","Jan"]
[null,null,null,null,null,null,null,null,null,null,"Feb"]
[null,null,null,null,null,null,null,null,null,null,"Mar"]
[null,null,null,null,null,null,null,null,null,null,"Apr"]
[null,null,null,null,null,null,null,null,null,null,"May"]
[null,null,null,null,null,null,null,null,null,null,"Jun"]
[null,null,null,null,null,null,null,null,null,null,"Jul"]
[null,null,null,null,null,null,null,null,null,null,"Aug"]
[null,null,null,null,null,null,null,null,null,null,"Sep"]
[null,null,null,null,null,null,null,null,null,null,"Oct"]
[null,null,null,null,null,null,null,null,null,null,"Nov"]
[null,null,null,null,null,null,null,null,null,null,"Dec"]
[null,null,null,null,null,null,null,null,null,null,"Annual",{"$f":"AVERAGE(L67:L78)","v":{"$error":"#DIV/0!"}},{"$f":"MAX(M67:M78)","v":0},{"$f":"AVERAGE(N67:N78)","v":{"$error":"#DIV/0!"}},{"$f":"MAX(O67:O78)","v":0}]

{"sheet":"TOC","index":18,"n_rows":79,"n_cols":17,"rows_kept":79,"cut":false,"hidden":false,"merged":[[3,16,7,18],[9,16,11,18],[12,16,15,18],[66,9,78,9],[4,1,4,3],[4,4,4,6],[4,9,4,14],[6,9,18,9],[21,9,33,9],[36,9,48,9],[47,0,47,6],[48,0,51,6],[51,9,63,9]]}
[{"$f":"+'Cover Page'!$B$29","v":"Annual Performance Report 2023"},null,null,null,{"$f":"+'Cover Page'!$B$33","v":"Cornwall Energy Recovery Centre"}]
[]
["Monitoring of Total organic carbon emissions",null,null,"Whole Installation",null,null,"See  Notes in Cell Q3",null,null,{"$f":"+A3","v":"Monitoring of Total organic carbon emissions"},null,null,null,"Per Combustion Line",null,null,"Notes:"]
[null,null,null,null,null,null,null,null,null,null,null,null,null,null,null,null,"User to add logic to complete Whole installation, Table A5:G18. From the data in Per Combustion Line, Table J6:O79, subject to No. of lines installed"]
["mg/Nm3","1/2 Hourly Reference Periods",null,null,"Daily Reference Periods"]
[{"$f":"+'Cover Page'!C39","v":2023},"1/2 hourly TOC ELV","Monthly 1/2 hourly mean","Highest 1/2 hourly maximum","Daily TOC ELV","Monthly daily mean","Highest daily maximum",null,null,{"$f":"+A6","v":2023},"mg/Nm3","Monthly 1/2 hourly mean","Monthly 1/2 hourly maximum","Monthly daily mean","Monthly daily maximum"]
["Jan",20,{"$f":"AVERAGE(L7,L22,L37,L52,L67)","v":0.25},{"$f":"MAX(M7,M22,M37,M52,M67)","v":4.2},10,{"$f":"AVERAGE(N7,N22,N37,N52,N67)","v":0.25},{"$f":"MAX(O7,O22,O37,O52,O67)","v":0.4},null,null,"A1","Jan",0.3,0.5,0.3,0.4]
["Feb",20,{"$f":"AVERAGE(L8,L23,L38,L53,L68)","v":0.35},{"$f":"MAX(M8,M23,M38,M53,M68)","v":3.5},10,{"$f":"AVERAGE(N8,N23,N38,N53,N68)","v":0.35},{"$f":"MAX(O8,O23,O38,O53,O68)","v":0.5},null,null,null,"Feb",0.4,0.8,0.4,0.5]
["Mar",20,0.25,3.5,10,0.27,0.5,null,null,null,"Mar",0.3,2.9,0.3,0.5,null,"Whole Installation table A5:G18:"]
["Apr",20,0.35,3.2,10,0.35,0.5,null,null,null,"Apr",0.4,2.8,0.4,0.5,null,"Mean: for 1/2 hourly and daily periods calculate mean of values across all operational combustion lines for the month"]
["May",20,0.44999999999999996,6.2,10,0.4,0.8,null,null,null,"May",0.6,6.2,0.5,0.8]
["Jun",20,0.65,17.7,10,0.4,0.6,null,null,null,"Jun",0.4,1.9,0.4,0.6]
["Jul",20,0.35,6.6,10,0.32999999999999996,0.6,null,null,null,"Jul",0.4,6.6,0.36,0.6,null,"Maximum: for 1/2 hourly and daily periods use the highest value across all operational combustion lines for the month"]
["Aug",20,0.35,3.8,10,0.37,0.6,null,null,null,"Aug",0.4,3.8,0.4,0.5]
["Sep",20,0.3,3.9,10,0.31,0.6,null,null,null,"Sep",0.3,0.6,0.35,0.4]
["Oct",20,0.25,3.3,10,0.3,0.4,null,null,null,"Oct",0.3,0.6,0.36,0.4]
["Nov",20,0.35,5.2,10,0.315,0.6,null,null,null,"Nov",0.4,3.2,0.38,0.4]
["Dec",20,0.5,15.7,10,0.48,1.9,null,null,null,"Dec",0.5,4.8,0.42,0.5]
[null,null,null,null,null,null,null,null,null,null,"Annual",{"$f":"AVERAGE(L7:L18)","v":0.39166666666666661},{"$f":"MAX(M7:M18)","v":6.6},{"$f":"AVERAGE(N7:N18)","v":0.3808333333333333},{"$f":"MAX(O7:O18)","v":0.8}]
[]
[null,null,null,null,null,null,null,null,null,{"$f":"+A6","v":2023},"mg/Nm3","Monthly 1/2 hourly mean","Monthly 1/2 hourly maximum","Monthly daily mean","Monthly daily maximum"]
[null,null,null,null,null,null,null,null,null,"A2","Jan",0.2,4.2,0.2,0.3]
[null,null,null,null,null,null,null,null,null,null,"Feb",0.3,3.5,0.3,0.5]
[null,null,null,null,null,null,null,null,null,null,"Mar",0.2,3.5,0.24,0.4]
[null,null,null,null,null,null,null,null,null,null,"Apr",0.3,3.2,0.3,0.4]
[null,null,null,null,null,null,null,null,null,null,"May",0.3,3.1,0.3,0.6]
[null,null,null,null,null,null,null,null,null,null,"Jun",0.9,17.7,0.4,0.5]
[null,null,null,null,null,null,null,null,null,null,"Jul",0.3,6.5,0.3,0.5]
[null,null,null,null,null,null,null,null,null,null,"Aug",0.3,3.2,0.34,0.6]
[null,null,null,null,null,null,null,null,null,null,"Sep",0.3,3.9,0.27,0.6]
[null,null,null,null,null,null,null,null,null,null,"Oct",0.2,3.3,0.24,0.4]
[null,null,null,null,null,null,null,null,null,null,"Nov",0.3,5.2,0.25,0.6]
[null,null,null,null,null,null,null,null,null,null,"Dec",0.5,15.7,0.54,1.9]
[null,null,null,null,null,null,null,null,null,null,"Annual",{"$f":"AVERAGE(L22:L33)","v":0.34166666666666662},{"$f":"MAX(M22:M33)","v":17.7},{"$f":"AVERAGE(N22:N33)","v":0.30666666666666664},{"$f":"MAX(O22:O33)","v":1.9}]
[]
[null,null,null,null,null,null,null,null,null,{"$f":"+A6","v":2023},"mg/Nm3","Monthly 1/2 hourly mean","Monthly 1/2 hourly maximum","Monthly daily mean","Monthly daily maximum"]
[null,null,null,null,null,null,null,null,null,"A3","Jan"]
[null,null,null,null,null,null,null,null,null,null,"Feb"]
[null,null,null,null,null,null,null,null,null,null,"Mar"]
[null,null,null,null,null,null,null,null,null,null,"Apr"]
[null,null,null,null,null,null,null,null,null,null,"May"]
[null,null,null,null,null,null,null,null,null,null,"Jun"]
[null,null,null,null,null,null,null,null,null,null,"Jul"]
[null,null,null,null,null,null,null,null,null,null,"Aug"]
[null,null,null,null,null,null,null,null,null,null,"Sep"]
[null,null,null,null,null,null,null,null,null,null,"Oct"]
[null,null,null,null,null,null,null,null,null,null,"Nov"]
["Comments :",null,null,null,null,null,null,null,null,null,"Dec"]
[null,null,null,null,null,null,null,null,null,null,"Annual",{"$f":"AVERAGE(L37:L48)","v":{"$error":"#DIV/0!"}},{"$f":"MAX(M37:M48)","v":0},{"$f":"AVERAGE(N37:N48)","v":{"$error":"#DIV/0!"}},{"$f":"MAX(O37:O48)","v":0}]
[]
[null,null,null,null,null,null,null,null,null,{"$f":"+A6","v":2023},"mg/Nm3","Monthly 1/2 hourly mean","Monthly 1/2 hourly maximum","Monthly daily mean","Monthly daily maximum"]
[null,null,null,null,null,null,null,null,null,"A4","Jan"]
[null,null,null,null,null,null,null,null,null,null,"Feb"]
[null,null,null,null,null,null,null,null,null,null,"Mar"]
[null,null,null,null,null,null,null,null,null,null,"Apr"]
[null,null,null,null,null,null,null,null,null,null,"May"]
[null,null,null,null,null,null,null,null,null,null,"Jun"]
[null,null,null,null,null,null,null,null,null,null,"Jul"]
[null,null,null,null,null,null,null,null,null,null,"Aug"]
[null,null,null,null,null,null,null,null,null,null,"Sep"]
[null,null,null,null,null,null,null,null,null,null,"Oct"]
[null,null,null,null,null,null,null,null,null,null,"Nov"]
[null,null,null,null,null,null,null,null,null,null,"Dec"]
[null,null,null,null,null,null,null,null,null,null,"Annual",{"$f":"AVERAGE(L52:L63)","v":{"$error":"#DIV/0!"}},{"$f":"MAX(M52:M63)","v":0},{"$f":"AVERAGE(N52:N63)","v":{"$error":"#DIV/0!"}},{"$f":"MAX(O52:O63)","v":0}]
[]
[null,null,null,null,null,null,null,null,null,{"$f":"+A6","v":2023},"mg/Nm3","Monthly 1/2 hourly mean","Monthly 1/2 hourly maximum","Monthly daily mean","Monthly daily maximum"]
[null,null,null,null,null,null,null,null,null,"A5","Jan"]
[null,null,null,null,null,null,null,null,null,null,"Feb"]
[null,null,null,null,null,null,null,null,null,null,"Mar"]
[null,null,null,null,null,null,null,null,null,null,"Apr"]
[null,null,null,null,null,null,null,null,null,null,"May"]
[null,null,null,null,null,null,null,null,null,null,"Jun"]
[null,null,null,null,null,null,null,null,null,null,"Jul"]
[null,null,null,null,null,null,null,null,null,null,"Aug"]
[null,null,null,null,null,null,null,null,null,null,"Sep"]
[null,null,null,null,null,null,null,null,null,null,"Oct"]
[null,null,null,null,null,null,null,null,null,null,"Nov"]
[null,null,null,null,null,null,null,null,null,null,"Dec"]
[null,null,null,null,null,null,null,null,null,null,"Annual",{"$f":"AVERAGE(L67:L78)","v":{"$error":"#DIV/0!"}},{"$f":"MAX(M67:M78)","v":0},{"$f":"AVERAGE(N67:N78)","v":{"$error":"#DIV/0!"}},{"$f":"MAX(O67:O78)","v":0}]

{"sheet":"Particulates","index":19,"n_rows":79,"n_cols":17,"rows_kept":79,"cut":false,"hidden":false,"merged":[[3,16,7,18],[9,16,11,18],[12,16,15,18],[66,9,78,9],[4,1,4,3],[4,4,4,6],[4,9,4,14],[6,9,18,9],[21,9,33,9],[36,9,48,9],[47,0,47,6],[48,0,51,6],[51,9,63,9],[18,4,18,6]]}
[{"$f":"+'Cover Page'!$B$29","v":"Annual Performance Report 2023"},null,null,null,{"$f":"+'Cover Page'!$B$33","v":"Cornwall Energy Recovery Centre"}]
[]
["Monitoring of Particulate matter emissions",null,null,"Whole Installation",null,null,"See  Notes in Cell Q3",null,null,{"$f":"+A3","v":"Monitoring of Particulate matter emissions"},null,null,null,"Per Combustion Line",null,null,"Notes:"]
[null,null,null,null,null,null,null,null,null,null,null,null,null,null,null,null,"User to add logic to complete Whole installation, Table A5:G18. From the data in Per Combustion Line, Table J6:O79, subject to No. of lines installed"]
["mg/Nm3","1/2 Hourly Reference Periods",null,null,"Daily Reference Periods"]
[{"$f":"+'Cover Page'!C39","v":2023},"1/2 hourly PM ELV","Monthly 1/2 hourly mean","Highest 1/2 hourly maximum","Daily PM ELV*","Monthly daily mean","Highest daily maximum",null,null,{"$f":"+A6","v":2023},"mg/Nm3","Monthly 1/2 hourly mean","Monthly 1/2 hourly maximum","Monthly daily mean","Monthly daily maximum"]
["Jan",30,{"$f":"AVERAGE(L7,L22,L37,L52,L67)","v":0.5},{"$f":"MAX(M7,M22,M37,M52,M67)","v":1.4},10,{"$f":"AVERAGE(N7,N22,N37,N52,N67)","v":0.48},{"$f":"MAX(O7,O22,O37,O52,O67)","v":1},null,null,"A1","Jan",0.7,1.3,0.71,1]
["Feb",30,{"$f":"AVERAGE(L8,L23,L38,L53,L68)","v":0.4},{"$f":"MAX(M8,M23,M38,M53,M68)","v":53},10,{"$f":"AVERAGE(N8,N23,N38,N53,N68)","v":0.42000000000000004},{"$f":"MAX(O8,O23,O38,O53,O68)","v":2},null,null,null,"Feb",0.6,53,0.64,2]
["Mar",30,0.55000000000000004,3.1,10,0.55000000000000004,2.1,null,null,null,"Mar",0.8,3.1,0.8,2.1,null,"Whole Installation table A5:G18:"]
["Apr",30,0.79999999999999993,8.4,10,0.77,2.5,null,null,null,"Apr",1.4,8.4,1.4,2.5,null,"Mean: for 1/2 hourly and daily periods calculate mean of values across all operational combustion lines for the month"]
["May",30,0.55000000000000004,64.3,10,0.57000000000000006,3.8,null,null,null,"May",1,64.3,1,3.8]
["Jun",30,1.05,58.3,10,1,4.4000000000000004,null,null,null,"Jun",1.7,58.3,1.6,4.4000000000000004]
["Jul",30,0.75,9.5,10,0.755,4.0999999999999996,null,null,null,"Jul",1,9.5,1,4.0999999999999996,null,"Maximum: for 1/2 hourly and daily periods use the highest value across all operational combustion lines for the month"]
["Aug",30,0.60000000000000009,6.2,10,0.60000000000000009,3.6,null,null,null,"Aug",0.8,6.2,0.8,3.6]
["Sep",30,0.55000000000000004,1.6,10,0.55000000000000004,1.1000000000000001,null,null,null,"Sep",0.6,1.3,0.6,0.8]
["Oct",30,0.7,4.3,10,0.7,2.4,null,null,null,"Oct",0.6,0.8,0.6,0.7]
["Nov",30,0.65,11.8,10,0.62,3.5,null,null,null,"Nov",0.8,11.3,0.77,1.4]
["Dec",30,0.75,24.4,5,0.72500000000000009,2.6,null,null,null,"Dec",1.1000000000000001,3.9,1.1000000000000001,2.2000000000000002]
[null,null,null,null,"* ELV reduced to 5 mg/Nm3 on 3 December 2023",null,null,null,null,null,"Annual",{"$f":"AVERAGE(L7:L18)","v":0.92499999999999993},{"$f":"MAX(M7:M18)","v":64.3},{"$f":"AVERAGE(N7:N18)","v":0.91833333333333333},{"$f":"MAX(O7:O18)","v":4.4000000000000004}]
[]
[null,null,null,null,null,null,null,null,null,{"$f":"+A6","v":2023},"mg/Nm3","Monthly 1/2 hourly mean","Monthly 1/2 hourly maximum","Monthly daily mean","Monthly daily maximum"]
[null,null,null,null,null,null,null,null,null,"A2","Jan",0.3,1.4,0.25,0.9]
[null,null,null,null,null,null,null,null,null,null,"Feb",0.2,1.6,0.2,0.4]
[null,null,null,null,null,null,null,null,null,null,"Mar",0.3,1.2,0.3,0.4]
[null,null,null,null,null,null,null,null,null,null,"Apr",0.2,0.7,0.14000000000000001,0.3]
[null,null,null,null,null,null,null,null,null,null,"May",0.1,0.4,0.14000000000000001,0.2]
[null,null,null,null,null,null,null,null,null,null,"Jun",0.4,4.5999999999999996,0.4,0.6]
[null,null,null,null,null,null,null,null,null,null,"Jul",0.5,1.8,0.51,1.1000000000000001]
[null,null,null,null,null,null,null,null,null,null,"Aug",0.4,1.6,0.4,0.9]
[null,null,null,null,null,null,null,null,null,null,"Sep",0.5,1.6,0.5,1.1000000000000001]
[null,null,null,null,null,null,null,null,null,null,"Oct",0.8,4.3,0.8,2.4]
[null,null,null,null,null,null,null,null,null,null,"Nov",0.5,11.8,0.47,3.5]
[null,null,null,null,null,null,null,null,null,null,"Dec",0.4,24.4,0.35,2.6]
[null,null,null,null,null,null,null,null,null,null,"Annual",{"$f":"AVERAGE(L22:L33)","v":0.38333333333333336},{"$f":"MAX(M22:M33)","v":24.4},{"$f":"AVERAGE(N22:N33)","v":0.37166666666666665},{"$f":"MAX(O22:O33)","v":3.5}]
[]
[null,null,null,null,null,null,null,null,null,{"$f":"+A6","v":2023},"mg/Nm3","Monthly 1/2 hourly mean","Monthly 1/2 hourly maximum","Monthly daily mean","Monthly daily maximum"]
[null,null,null,null,null,null,null,null,null,"A3","Jan"]
[null,null,null,null,null,null,null,null,null,null,"Feb"]
[null,null,null,null,null,null,null,null,null,null,"Mar"]
[null,null,null,null,null,null,null,null,null,null,"Apr"]
[null,null,null,null,null,null,null,null,null,null,"May"]
[null,null,null,null,null,null,null,null,null,null,"Jun"]
[null,null,null,null,null,null,null,null,null,null,"Jul"]
[null,null,null,null,null,null,null,null,null,null,"Aug"]
[null,null,null,null,null,null,null,null,null,null,"Sep"]
[null,null,null,null,null,null,null,null,null,null,"Oct"]
[null,null,null,null,null,null,null,null,null,null,"Nov"]
["Comments :",null,null,null,null,null,null,null,null,null,"Dec"]
[null,null,null,null,null,null,null,null,null,null,"Annual",{"$f":"AVERAGE(L37:L48)","v":{"$error":"#DIV/0!"}},{"$f":"MAX(M37:M48)","v":0},{"$f":"AVERAGE(N37:N48)","v":{"$error":"#DIV/0!"}},{"$f":"MAX(O37:O48)","v":0}]
[]
[null,null,null,null,null,null,null,null,null,{"$f":"+A6","v":2023},"mg/Nm3","Monthly 1/2 hourly mean","Monthly 1/2 hourly maximum","Monthly daily mean","Monthly daily maximum"]
[null,null,null,null,null,null,null,null,null,"A4","Jan"]
[null,null,null,null,null,null,null,null,null,null,"Feb"]
[null,null,null,null,null,null,null,null,null,null,"Mar"]
[null,null,null,null,null,null,null,null,null,null,"Apr"]
[null,null,null,null,null,null,null,null,null,null,"May"]
[null,null,null,null,null,null,null,null,null,null,"Jun"]
[null,null,null,null,null,null,null,null,null,null,"Jul"]
[null,null,null,null,null,null,null,null,null,null,"Aug"]
[null,null,null,null,null,null,null,null,null,null,"Sep"]
[null,null,null,null,null,null,null,null,null,null,"Oct"]
[null,null,null,null,null,null,null,null,null,null,"Nov"]
[null,null,null,null,null,null,null,null,null,null,"Dec"]
[null,null,null,null,null,null,null,null,null,null,"Annual",{"$f":"AVERAGE(L52:L63)","v":{"$error":"#DIV/0!"}},{"$f":"MAX(M52:M63)","v":0},{"$f":"AVERAGE(N52:N63)","v":{"$error":"#DIV/0!"}},{"$f":"MAX(O52:O63)","v":0}]
[]
[null,null,null,null,null,null,null,null,null,{"$f":"+A6","v":2023},"mg/Nm3","Monthly 1/2 hourly mean","Monthly 1/2 hourly maximum","Monthly daily mean","Monthly daily maximum"]
[null,null,null,null,null,null,null,null,null,"A5","Jan"]
[null,null,null,null,null,null,null,null,null,null,"Feb"]
[null,null,null,null,null,null,null,null,null,null,"Mar"]
[null,null,null,null,null,null,null,null,null,null,"Apr"]
[null,null,null,null,null,null,null,null,null,null,"May"]
[null,null,null,null,null,null,null,null,null,null,"Jun"]
[null,null,null,null,null,null,null,null,null,null,"Jul"]
[null,null,null,null,null,null,null,null,null,null,"Aug"]
[null,null,null,null,null,null,null,null,null,null,"Sep"]
[null,null,null,null,null,null,null,null,null,null,"Oct"]
[null,null,null,null,null,null,null,null,null,null,"Nov"]
[null,null,null,null,null,null,null,null,null,null,"Dec"]
[null,null,null,null,null,null,null,null,null,null,"Annual",{"$f":"AVERAGE(L67:L78)","v":{"$error":"#DIV/0!"}},{"$f":"MAX(M67:M78)","v":0},{"$f":"AVERAGE(N67:N78)","v":{"$error":"#DIV/0!"}},{"$f":"MAX(O67:O78)","v":0}]

{"sheet":"CO 95% 10 min","index":20,"n_rows":79,"n_cols":19,"rows_kept":79,"cut":false,"hidden":false,"merged":[[3,18,7,20],[9,18,11,20],[12,18,15,20],[66,10,78,10],[4,1,4,4],[4,5,4,7],[4,10,4,16],[6,10,18,10],[21,10,33,10],[36,10,48,10],[47,0,47,7],[48,0,51,7],[51,10,63,10]]}
[{"$f":"+'Cover Page'!$B$29","v":"Annual Performance Report 2023"},null,null,null,{"$f":"+'Cover Page'!$B$33","v":"Cornwall Energy Recovery Centre"}]
[]
["Monitoring of Carbon Monoxide (10-minute avg)",null,null,null,"Whole Installation",null,null,"See  Notes in Cell S3",null,{"$f":"+A3","v":"Monitoring of Carbon Monoxide (10-minute avg)"},null,null,null,null,"Per Combustion Line",null,"Notes:",null,"Notes:"]
[null,null,null,null,null,null,null,null,null,null,null,null,null,null,null,null,null,null,"User to add logic to complete Whole installation, Table A5:H18. From the data in Per Combustion Line, Table K6:Q79, subject to No. of lines installed"]
["mg/Nm3","10-minute Reference Periods",null,null,null,"Daily Reference Periods"]
[{"$f":"+'Cover Page'!C39","v":2023},"95%ile 10-min avg CO ELV","95%ile 10-min avg maximum","Monthly CO 10-min avg mean","10-min avg maximum","Daily CO ELV","Monthly daily mean","Highest daily maximum",null,null,{"$f":"+A6","v":2023},"mg/Nm3","95%ile 10-min avg maximum","Monthly CO 10-min avg mean","10-min avg maximum","Monthly daily mean","Monthly daily maximum"]
["Jan",150,{"$f":"AVERAGE(M7,M22,M37,M52,M67)","v":6.3999999999999995},{"$f":"AVERAGE(N7,N22,N37,N52,N67)","v":3.6},{"$f":"MAX(O7,O22,O37,O52,O67)","v":217},50,{"$f":"AVERAGE(P7,P22,P37,P52,P67)","v":3.4499999999999997},{"$f":"MAX(Q7,Q22,Q37,Q52,Q67)","v":7.5},null,null,"A1","Jan",4.0999999999999996,1.8,106,1.8,3.9]
["Feb",{"$f":"+B7","v":150},{"$f":"AVERAGE(M8,M23,M38,M53,M68)","v":6.9499999999999993},4.6500000000000004,{"$f":"MAX(O8,O23,O38,O53,O68)","v":303},{"$f":"+F7","v":50},{"$f":"AVERAGE(P8,P23,P38,P53,P68)","v":4.7},{"$f":"MAX(Q8,Q23,Q38,Q53,Q68)","v":9.8000000000000007},null,null,null,"Feb",6.6,3,158,3.1,9.8000000000000007]
["Mar",{"$f":"+B8","v":150},7.7,5.6999999999999993,252,{"$f":"+F8","v":50},5.8,10,null,null,null,"Mar",7.7,4.8,219,5,7.6,null,"Whole Installation table A5:H18:"]
["Apr",150,4.1999999999999993,3.3,234,50,2.4500000000000002,7.2,null,null,null,"Apr",4.0999999999999996,3.5,158,1.8,7.2,null,"Mean: for 10-min and daily periods use average of all operational combustion lines."]
["May",150,8.8000000000000007,5.15,601,50,4.5999999999999996,8.3000000000000007,null,null,null,"May",9.5,4.0999999999999996,601,3.4,7.8]
["Jun",150,19.5,4.8499999999999996,652,50,3.55,10.9,null,null,null,"Jun",7,2.1,178,2.1,9.4]
["Jul",150,4.3,2.9000000000000004,292,50,2.35,9.1,null,null,null,"Jul",2.5,2.2000000000000002,292,1.2,2.7,null,"Maximum: for 10-min and daily periods use the highest of all operational combustion lines in any month."]
["Aug",150,2.5499999999999998,1.3499999999999999,250,50,1.4,5.3,null,null,null,"Aug",1.2,0.4,144,0.3,1.4]
["Sep",150,3.75,1.85,320,50,1.85,13.9,null,null,null,"Sep",2.1,0.8,164,0.8,2.2000000000000002]
["Oct",150,3.8,1.75,206,50,1.8199999999999998,5.4,null,null,null,"Oct",3,1.2,52,1.24,2.6]
["Nov",150,4.75,2.7,437,50,2.6500000000000004,6.4,null,null,null,"Nov",4.5999999999999996,2.6,330,2.6,5.3]
["Dec",150,7.3000000000000007,2.4500000000000002,626,50,1.94,8.4,null,null,null,"Dec",8.8000000000000007,2,626,0.98,3.5]
[null,null,null,null,null,null,null,null,null,null,null,"Annual",{"$f":"AVERAGE(M7:M18)","v":5.1000000000000005},null,{"$f":"MAX(O7:O18)","v":626},{"$f":"AVERAGE(P7:P18)","v":2.0266666666666668},{"$f":"MAX(Q7:Q18)","v":9.8000000000000007}]
[]
[null,null,null,null,null,null,null,null,null,null,{"$f":"+A6","v":2023},"mg/Nm3","95%ile 10-min avg maximum","Monthly CO 10-min avg mean","10-min avg maximum","Monthly daily mean","Monthly daily maximum"]
[null,null,null,null,null,null,null,null,null,null,"A2","Jan",8.6999999999999993,5.4,217,5.0999999999999996,7.5]
[null,null,null,null,null,null,null,null,null,null,null,"Feb",7.3,6.3,303,6.3,8]
[null,null,null,null,null,null,null,null,null,null,null,"Mar",7.7,6.6,252,6.6,10]
[null,null,null,null,null,null,null,null,null,null,null,"Apr",4.3,3.1,234,3.1,5]
[null,null,null,null,null,null,null,null,null,null,null,"May",8.1,6.2,165,5.8,8.3000000000000007]
[null,null,null,null,null,null,null,null,null,null,null,"Jun",32,7.6,652,5,10.9]
[null,null,null,null,null,null,null,null,null,null,null,"Jul",6.1,3.6,233,3.5,9.1]
[null,null,null,null,null,null,null,null,null,null,null,"Aug",3.9,2.2999999999999998,250,2.5,5.3]
[null,null,null,null,null,null,null,null,null,null,null,"Sep",5.4,2.9,320,2.9,13.9]
[null,null,null,null,null,null,null,null,null,null,null,"Oct",4.5999999999999996,2.2999999999999998,206,2.4,5.4]
[null,null,null,null,null,null,null,null,null,null,null,"Nov",4.9000000000000004,2.8,437,2.7,6.4]
[null,null,null,null,null,null,null,null,null,null,null,"Dec",5.8,2.9,293,2.9,8.4]
[null,null,null,null,null,null,null,null,null,null,null,"Annual",{"$f":"AVERAGE(M22:M33)","v":8.2333333333333325},null,{"$f":"MAX(O22:O33)","v":652},{"$f":"AVERAGE(P22:P33)","v":4.0666666666666673},{"$f":"MAX(Q22:Q33)","v":13.9}]
[]
[null,null,null,null,null,null,null,null,null,null,{"$f":"+A6","v":2023},"mg/Nm3","95%ile 10-min avg maximum","Monthly CO 10-min avg mean","10-min avg maximum","Monthly daily mean","Monthly daily maximum"]
[null,null,null,null,null,null,null,null,null,null,"A3","Jan"]
[null,null,null,null,null,null,null,null,null,null,null,"Feb"]
[null,null,null,null,null,null,null,null,null,null,null,"Mar"]
[null,null,null,null,null,null,null,null,null,null,null,"Apr"]
[null,null,null,null,null,null,null,null,null,null,null,"May"]
[null,null,null,null,null,null,null,null,null,null,null,"Jun"]
[null,null,null,null,null,null,null,null,null,null,null,"Jul"]
[null,null,null,null,null,null,null,null,null,null,null,"Aug"]
[null,null,null,null,null,null,null,null,null,null,null,"Sep"]
[null,null,null,null,null,null,null,null,null,null,null,"Oct"]
[null,null,null,null,null,null,null,null,null,null,null,"Nov"]
["Comments :",null,null,null,null,null,null,null,null,null,null,"Dec"]
["Environment Agency explanatory note: The 10-minute average ELV is based on the “95th percentile”. In this case this means that 95% of the 10 minute averages in the relevant 24-hour period (i.e. 137) must be below 150 mg/Nm3, and 5% (i.e. 7) are allowed to be any value above 150 mg/Nm3. Whilst we expect operators to minimise CO emissions at all times, it is perfectly acceptable for the value of the maximum 10-minute average to be above 150 mg/Nm3, provided the 95th percentile ELV has been met for that period. ",null,null,null,null,null,null,null,null,null,null,"Annual",{"$f":"AVERAGE(M37:M48)","v":{"$error":"#DIV/0!"}},null,{"$f":"MAX(O37:O48)","v":0},{"$f":"AVERAGE(P37:P48)","v":{"$error":"#DIV/0!"}},{"$f":"MAX(Q37:Q48)","v":0}]
[]
[null,null,null,null,null,null,null,null,null,null,{"$f":"+A6","v":2023},"mg/Nm3","95%ile 10-min avg maximum","Monthly CO 10-min avg mean","10-min avg maximum","Monthly daily mean","Monthly daily maximum"]
[null,null,null,null,null,null,null,null,null,null,"A4","Jan"]
[null,null,null,null,null,null,null,null,null,null,null,"Feb"]
[null,null,null,null,null,null,null,null,null,null,null,"Mar"]
[null,null,null,null,null,null,null,null,null,null,null,"Apr"]
[null,null,null,null,null,null,null,null,null,null,null,"May"]
[null,null,null,null,null,null,null,null,null,null,null,"Jun"]
[null,null,null,null,null,null,null,null,null,null,null,"Jul"]
[null,null,null,null,null,null,null,null,null,null,null,"Aug"]
[null,null,null,null,null,null,null,null,null,null,null,"Sep"]
[null,null,null,null,null,null,null,null,null,null,null,"Oct"]
[null,null,null,null,null,null,null,null,null,null,null,"Nov"]
[null,null,null,null,null,null,null,null,null,null,null,"Dec"]
[null,null,null,null,null,null,null,null,null,null,null,"Annual",{"$f":"AVERAGE(M52:M63)","v":{"$error":"#DIV/0!"}},null,{"$f":"MAX(O52:O63)","v":0},{"$f":"AVERAGE(P52:P63)","v":{"$error":"#DIV/0!"}},{"$f":"MAX(Q52:Q63)","v":0}]
[]
[null,null,null,null,null,null,null,null,null,null,{"$f":"+A6","v":2023},"mg/Nm3","95%ile 10-min avg maximum","Monthly CO 10-min avg mean","10-min avg maximum","Monthly daily mean","Monthly daily maximum"]
[null,null,null,null,null,null,null,null,null,null,"A5","Jan"]
[null,null,null,null,null,null,null,null,null,null,null,"Feb"]
[null,null,null,null,null,null,null,null,null,null,null,"Mar"]
[null,null,null,null,null,null,null,null,null,null,null,"Apr"]
[null,null,null,null,null,null,null,null,null,null,null,"May"]
[null,null,null,null,null,null,null,null,null,null,null,"Jun"]
[null,null,null,null,null,null,null,null,null,null,null,"Jul"]
[null,null,null,null,null,null,null,null,null,null,null,"Aug"]
[null,null,null,null,null,null,null,null,null,null,null,"Sep"]
[null,null,null,null,null,null,null,null,null,null,null,"Oct"]
[null,null,null,null,null,null,null,null,null,null,null,"Nov"]
[null,null,null,null,null,null,null,null,null,null,null,"Dec"]
[null,null,null,null,null,null,null,null,null,null,null,"Annual",{"$f":"AVERAGE(M67:M78)","v":{"$error":"#DIV/0!"}},null,{"$f":"MAX(O67:O78)","v":0},{"$f":"AVERAGE(P67:P78)","v":{"$error":"#DIV/0!"}},{"$f":"MAX(Q67:Q78)","v":0}]

{"sheet":"HF","index":21,"n_rows":79,"n_cols":17,"rows_kept":79,"cut":false,"hidden":false,"merged":[[66,9,78,9],[3,16,7,18],[4,1,4,3],[4,4,4,6],[4,9,4,14],[6,9,18,9],[9,16,11,18],[12,16,15,18],[18,4,18,6],[21,9,33,9],[36,9,48,9],[47,0,47,6],[48,0,51,6],[51,9,63,9]]}
[{"$f":"+'Cover Page'!$B$29","v":"Annual Performance Report 2023"},null,null,null,{"$f":"+'Cover Page'!$B$33","v":"Cornwall Energy Recovery Centre"}]
[]
["Monitoring of Hydrogen Fluoride emissions ",null,null,"Whole Installation",null,null,"See  Notes in Cell Q3",null,null,{"$f":"+A3","v":"Monitoring of Hydrogen Fluoride emissions "},null,null,null,"Per Combustion Line",null,null,"Notes:"]
[null,null,null,null,null,null,null,null,null,null,null,null,null,null,null,null,"User to add logic to complete Whole installation, Table A5:G18. From the data in Per Combustion Line, Table J6:O79, subject to No. of lines installed"]
["mg/Nm3","1/2 Hourly Reference Periods",null,null,"Daily Reference Periods"]
[{"$f":"+'Cover Page'!C39","v":2023},"1/2 hourly HF ELV","Monthly 1/2 hourly mean","Highest 1/2 hourly maximum","Daily HF ELV*","Monthly daily mean","Highest daily maximum",null,null,{"$f":"+A6","v":2023},"mg/Nm3","Monthly 1/2 hourly mean","Monthly 1/2 hourly maximum","Monthly daily mean","Monthly daily maximum"]
["Jan",4,{"$f":"AVERAGE(L7,L22)","v":0},{"$f":"MAX(M7,M22,M37,M52,M67)","v":0.5},1,{"$f":"AVERAGE(N7,N22,N37,N52,N67)","v":6.4999999999999997E-3},{"$f":"MAX(O7,O22,O37,O52,O67)","v":0.2},null,null,"A1","Jan",0,0.5,0,0]
["Feb",4,{"$f":"AVERAGE(L8,L23,L38,L53,L68)","v":0},{"$f":"MAX(M8,M23,M38,M53,M68)","v":1.8},1,{"$f":"AVERAGE(N8,N23,N38,N53,N68)","v":0},{"$f":"MAX(O8,O23,O38,O53,O68)","v":0},null,null,null,"Feb",0,1.8,0,0]
["Mar",{"$f":"+B8","v":4},0,0.5,1,0,0,null,null,null,"Mar",0,0.5,0,0,null,"Whole Installation table A5:G18:"]
["Apr",4,0,0.1,1,0,0,null,null,null,"Apr",0,0,0,0,null,"Mean: for 1/2 hourly and daily periods calculate mean of values across all operational combustion lines for the month"]
["May",4,0,0,1,0,0,null,null,null,"May",0,0,0,0]
["Jun",4,0,1.3,1,0,0,null,null,null,"Jun",0,1.3,0,0]
["Jul",4,0,0.8,1,5.0000000000000001E-3,0.2,null,null,null,"Jul",0,0.6,0,0.2,null,"Maximum: for 1/2 hourly and daily periods use the highest value across all operational combustion lines for the month"]
["Aug",4,0,1,1,1.4999999999999999E-2,0.4,null,null,null,"Aug",0,1,0,0]
["Sep",4,0,0.6,1,0,0,null,null,null,"Sep",0,0.6,0,0]
["Oct",4,0,0.8,1,0,0,null,null,null,"Oct",0,0.7,0,0]
["Nov",4,0,0.6,1,0,0,null,null,null,"Nov",0,0.6,0,0]
["Dec",4,0,0.2,1,1.5E-3,0.1,null,null,null,"Dec",0,0,0,0]
[null,null,null,null,null,null,null,null,null,null,"Annual",{"$f":"AVERAGE(L7:L18)","v":0},{"$f":"MAX(M7:M18)","v":1.8},{"$f":"AVERAGE(N7:N18)","v":0},{"$f":"MAX(O7:O18)","v":0.2}]
[]
[null,null,null,null,null,null,null,null,null,{"$f":"+A6","v":2023},"mg/Nm3","Monthly 1/2 hourly mean","Monthly 1/2 hourly maximum","Monthly daily mean","Monthly daily maximum"]
[null,null,null,null,null,null,null,null,null,"A2","Jan",0,0.5,1.2999999999999999E-2,0.2]
[null,null,null,null,null,null,null,null,null,null,"Feb",0,0.3,0,0]
[null,null,null,null,null,null,null,null,null,null,"Mar",0,0.4,0,0]
[null,null,null,null,null,null,null,null,null,null,"Apr",0,0.1,0,0]
[null,null,null,null,null,null,null,null,null,null,"May",0,0,0,0]
[null,null,null,null,null,null,null,null,null,null,"Jun",0,0,0,0]
[null,null,null,null,null,null,null,null,null,null,"Jul",0,0.8,0.01,0.2]
[null,null,null,null,null,null,null,null,null,null,"Aug",0,0.8,0.03,0.4]
[null,null,null,null,null,null,null,null,null,null,"Sep",0,0.5,0,0]
[null,null,null,null,null,null,null,null,null,null,"Oct",0,0.8,0,0]
[null,null,null,null,null,null,null,null,null,null,"Nov",0,0.6,0,0]
[null,null,null,null,null,null,null,null,null,null,"Dec",0,0.2,3.0000000000000001E-3,0.1]
[null,null,null,null,null,null,null,null,null,null,"Annual",{"$f":"AVERAGE(L22:L33)","v":0},{"$f":"MAX(M22:M33)","v":0.8},{"$f":"AVERAGE(N22:N33)","v":4.6666666666666671E-3},{"$f":"MAX(O22:O33)","v":0.4}]
[]
[null,null,null,null,null,null,null,null,null,{"$f":"+A6","v":2023},"mg/Nm3","Monthly 1/2 hourly mean","Monthly 1/2 hourly maximum","Monthly daily mean","Monthly daily maximum"]
[null,null,null,null,null,null,null,null,null,"A3","Jan"]
[null,null,null,null,null,null,null,null,null,null,"Feb"]
[null,null,null,null,null,null,null,null,null,null,"Mar"]
[null,null,null,null,null,null,null,null,null,null,"Apr"]
[null,null,null,null,null,null,null,null,null,null,"May"]
[null,null,null,null,null,null,null,null,null,null,"Jun"]
[null,null,null,null,null,null,null,null,null,null,"Jul"]
[null,null,null,null,null,null,null,null,null,null,"Aug"]
[null,null,null,null,null,null,null,null,null,null,"Sep"]
[null,null,null,null,null,null,null,null,null,null,"Oct"]
[null,null,null,null,null,null,null,null,null,null,"Nov"]
["Comments :",null,null,null,null,null,null,null,null,null,"Dec"]
[null,null,null,null,null,null,null,null,null,null,"Annual",{"$f":"AVERAGE(L37:L48)","v":{"$error":"#DIV/0!"}},{"$f":"MAX(M37:M48)","v":0},{"$f":"AVERAGE(N37:N48)","v":{"$error":"#DIV/0!"}},{"$f":"MAX(O37:O48)","v":0}]
[]
[null,null,null,null,null,null,null,null,null,{"$f":"+A6","v":2023},"mg/Nm3","Monthly 1/2 hourly mean","Monthly 1/2 hourly maximum","Monthly daily mean","Monthly daily maximum"]
[null,null,null,null,null,null,null,null,null,"A4","Jan"]
[null,null,null,null,null,null,null,null,null,null,"Feb"]
[null,null,null,null,null,null,null,null,null,null,"Mar"]
[null,null,null,null,null,null,null,null,null,null,"Apr"]
[null,null,null,null,null,null,null,null,null,null,"May"]
[null,null,null,null,null,null,null,null,null,null,"Jun"]
[null,null,null,null,null,null,null,null,null,null,"Jul"]
[null,null,null,null,null,null,null,null,null,null,"Aug"]
[null,null,null,null,null,null,null,null,null,null,"Sep"]
[null,null,null,null,null,null,null,null,null,null,"Oct"]
[null,null,null,null,null,null,null,null,null,null,"Nov"]
[null,null,null,null,null,null,null,null,null,null,"Dec"]
[null,null,null,null,null,null,null,null,null,null,"Annual",{"$f":"AVERAGE(L52:L63)","v":{"$error":"#DIV/0!"}},{"$f":"MAX(M52:M63)","v":0},{"$f":"AVERAGE(N52:N63)","v":{"$error":"#DIV/0!"}},{"$f":"MAX(O52:O63)","v":0}]
[]
[null,null,null,null,null,null,null,null,null,{"$f":"+A6","v":2023},"mg/Nm3","Monthly 1/2 hourly mean","Monthly 1/2 hourly maximum","Monthly daily mean","Monthly daily maximum"]
[null,null,null,null,null,null,null,null,null,"A5","Jan"]
[null,null,null,null,null,null,null,null,null,null,"Feb"]
[null,null,null,null,null,null,null,null,null,null,"Mar"]
[null,null,null,null,null,null,null,null,null,null,"Apr"]
[null,null,null,null,null,null,null,null,null,null,"May"]
[null,null,null,null,null,null,null,null,null,null,"Jun"]
[null,null,null,null,null,null,null,null,null,null,"Jul"]
[null,null,null,null,null,null,null,null,null,null,"Aug"]
[null,null,null,null,null,null,null,null,null,null,"Sep"]
[null,null,null,null,null,null,null,null,null,null,"Oct"]
[null,null,null,null,null,null,null,null,null,null,"Nov"]
[null,null,null,null,null,null,null,null,null,null,"Dec"]
[null,null,null,null,null,null,null,null,null,null,"Annual",{"$f":"AVERAGE(L67:L78)","v":{"$error":"#DIV/0!"}},{"$f":"MAX(M67:M78)","v":0},{"$f":"AVERAGE(N67:N78)","v":{"$error":"#DIV/0!"}},{"$f":"MAX(O67:O78)","v":0}]

{"sheet":"NH3","index":22,"n_rows":79,"n_cols":17,"rows_kept":79,"cut":false,"hidden":false,"merged":[[3,16,7,18],[9,16,11,18],[12,16,15,18],[66,9,78,9],[4,1,4,3],[4,4,4,6],[4,9,4,14],[6,9,18,9],[21,9,33,9],[36,9,48,9],[47,0,47,6],[48,0,51,6],[51,9,63,9],[18,4,18,6]]}
[{"$f":"+'Cover Page'!$B$29","v":"Annual Performance Report 2023"},null,null,null,{"$f":"+'Cover Page'!$B$33","v":"Cornwall Energy Recovery Centre"}]
[]
["Monitoring of Ammnonia emissions ",null,null,"Whole Installation",null,null,"See  Notes in Cell Q3",null,null,{"$f":"+A3","v":"Monitoring of Ammnonia emissions "},null,null,null,"Per Combustion Line",null,null,"Notes:"]
[null,null,null,null,null,null,null,null,null,null,null,null,null,null,null,null,"User to add logic to complete Whole installation, Table A5:G18. From the data in Per Combustion Line, Table J6:O79, subject to No. of lines installed"]
["mg/Nm3","1/2 Hourly Reference Periods",null,null,"Daily Reference Periods"]
[{"$f":"+'Cover Page'!C39","v":2023},"1/2 hourly NH3 ELV","Monthly 1/2 hourly mean","Highest 1/2 hourly maximum","Daily NH3 ELV*","Monthly daily mean","Highest daily maximum",null,null,{"$f":"+A6","v":2023},"mg/Nm3","Monthly 1/2 hourly mean","Monthly 1/2 hourly maximum","Monthly daily mean","Monthly daily maximum"]
["Jan","None",{"$f":"AVERAGE(L7,L22,L37,L52,L67)","v":0},{"$f":"MAX(M7,M22,M37,M52,M67)","v":0.4},10,{"$f":"AVERAGE(N7,N22,N37,N52,N67)","v":0},{"$f":"MAX(O7,O22,O37,O52,O67)","v":0},null,null,"A1","Jan",0,0,0,0]
["Feb",{"$f":"+B7","v":"None"},{"$f":"AVERAGE(L8,L23,L38,L53,L68)","v":0},{"$f":"MAX(M8,M23,M38,M53,M68)","v":6.9},10,{"$f":"AVERAGE(N8,N23,N38,N53,N68)","v":0},{"$f":"MAX(O8,O23,O38,O53,O68)","v":0},null,null,null,"Feb",0,6.9,0,0]
["Mar",{"$f":"+B8","v":"None"},0,0.9,10,1.2999999999999999E-2,0.4,null,null,null,"Mar",0,0.9,2.5999999999999999E-2,0.4,null,"Whole Installation table A5:G18:"]
["Apr","None",0,0.9,10,0,0,null,null,null,"Apr",0,0.9,0,0,null,"Mean: for 1/2 hourly and daily periods calculate mean of values across all operational combustion lines for the month"]
["May","None",0,2,10,2.5000000000000001E-2,0.4,null,null,null,"May",0,2,0.05,0.4]
["Jun","None",{"$f":"AVERAGE(L12,L27,L42,L57,L72)","v":0.05},3.8,10,0,0.1,null,null,null,"Jun",0,1.9,0,0]
["Jul","None",0,2.1,10,0,0,null,null,null,"Jul",0,0.4,0,0,null,"Maximum: for 1/2 hourly and daily periods use the highest value across all operational combustion lines for the month"]
["Aug","None",0,0.1,10,0,0,null,null,null,"Aug",0,0,0,0]
["Sep","None",0,0.6,10,0,0,null,null,null,"Sep",0,0.6,0,0]
["Oct","None",0,0.1,10,0,0,null,null,null,"Oct",0,0,0,0]
["Nov","None",0,0.7,10,5.0000000000000001E-3,0.1,null,null,null,"Nov",0,0.4,0.01,0.1]
["Dec","None",0,3.3,10,0,0,null,null,null,"Dec",0,3.3,0,0]
[null,null,null,null,null,null,null,null,null,null,"Annual",{"$f":"AVERAGE(L7:L18)","v":0},{"$f":"MAX(M7:M18)","v":6.9},{"$f":"AVERAGE(N7:N18)","v":7.1666666666666658E-3},{"$f":"MAX(O7:O18)","v":0.4}]
[]
[null,null,null,null,null,null,null,null,null,{"$f":"+A6","v":2023},"mg/Nm3","Monthly 1/2 hourly mean","Monthly 1/2 hourly maximum","Monthly daily mean","Monthly daily maximum"]
[null,null,null,null,null,null,null,null,null,"A2","Jan",0,0.4,0,0]
[null,null,null,null,null,null,null,null,null,null,"Feb",0,1.5,0,0]
[null,null,null,null,null,null,null,null,null,null,"Mar",0,0.5,0,0]
[null,null,null,null,null,null,null,null,null,null,"Apr",0,0.1,0,0]
[null,null,null,null,null,null,null,null,null,null,"May",0,0.1,0,0]
[null,null,null,null,null,null,null,null,null,null,"Jun",0.1,3.8,0,0.1]
[null,null,null,null,null,null,null,null,null,null,"Jul",0,2.1,0,0]
[null,null,null,null,null,null,null,null,null,null,"Aug",0,0.1,0,0]
[null,null,null,null,null,null,null,null,null,null,"Sep",0,0.5,0,0]
[null,null,null,null,null,null,null,null,null,null,"Oct",0,0.1,0,0]
[null,null,null,null,null,null,null,null,null,null,"Nov",0,0.7,0,0.1]
[null,null,null,null,null,null,null,null,null,null,"Dec",0,0.6,0,0]
[null,null,null,null,null,null,null,null,null,null,"Annual",{"$f":"AVERAGE(L22:L33)","v":8.3333333333333332E-3},{"$f":"MAX(M22:M33)","v":3.8},{"$f":"AVERAGE(N22:N33)","v":0},{"$f":"MAX(O22:O33)","v":0.1}]
[]
[null,null,null,null,null,null,null,null,null,{"$f":"+A6","v":2023},"mg/Nm3","Monthly 1/2 hourly mean","Monthly 1/2 hourly maximum","Monthly daily mean","Monthly daily maximum"]
[null,null,null,null,null,null,null,null,null,"A3","Jan"]
[null,null,null,null,null,null,null,null,null,null,"Feb"]
[null,null,null,null,null,null,null,null,null,null,"Mar"]
[null,null,null,null,null,null,null,null,null,null,"Apr"]
[null,null,null,null,null,null,null,null,null,null,"May"]
[null,null,null,null,null,null,null,null,null,null,"Jun"]
[null,null,null,null,null,null,null,null,null,null,"Jul"]
[null,null,null,null,null,null,null,null,null,null,"Aug"]
[null,null,null,null,null,null,null,null,null,null,"Sep"]
[null,null,null,null,null,null,null,null,null,null,"Oct"]
[null,null,null,null,null,null,null,null,null,null,"Nov"]
["Comments :",null,null,null,null,null,null,null,null,null,"Dec"]
["An indicated ELV value of zero in the table above means that no ammonia limit is/was set in the permit.  ",null,null,null,null,null,null,null,null,null,"Annual",{"$f":"AVERAGE(L37:L48)","v":{"$error":"#DIV/0!"}},{"$f":"MAX(M37:M48)","v":0},{"$f":"AVERAGE(N37:N48)","v":{"$error":"#DIV/0!"}},{"$f":"MAX(O37:O48)","v":0}]
[]
[null,null,null,null,null,null,null,null,null,{"$f":"+A6","v":2023},"mg/Nm3","Monthly 1/2 hourly mean","Monthly 1/2 hourly maximum","Monthly daily mean","Monthly daily maximum"]
[null,null,null,null,null,null,null,null,null,"A4","Jan"]
[null,null,null,null,null,null,null,null,null,null,"Feb"]
[null,null,null,null,null,null,null,null,null,null,"Mar"]
[null,null,null,null,null,null,null,null,null,null,"Apr"]
[null,null,null,null,null,null,null,null,null,null,"May"]
[null,null,null,null,null,null,null,null,null,null,"Jun"]
[null,null,null,null,null,null,null,null,null,null,"Jul"]
[null,null,null,null,null,null,null,null,null,null,"Aug"]
[null,null,null,null,null,null,null,null,null,null,"Sep"]
[null,null,null,null,null,null,null,null,null,null,"Oct"]
[null,null,null,null,null,null,null,null,null,null,"Nov"]
[null,null,null,null,null,null,null,null,null,null,"Dec"]
[null,null,null,null,null,null,null,null,null,null,"Annual",{"$f":"AVERAGE(L52:L63)","v":{"$error":"#DIV/0!"}},{"$f":"MAX(M52:M63)","v":0},{"$f":"AVERAGE(N52:N63)","v":{"$error":"#DIV/0!"}},{"$f":"MAX(O52:O63)","v":0}]
[]
[null,null,null,null,null,null,null,null,null,{"$f":"+A6","v":2023},"mg/Nm3","Monthly 1/2 hourly mean","Monthly 1/2 hourly maximum","Monthly daily mean","Monthly daily maximum"]
[null,null,null,null,null,null,null,null,null,"A5","Jan"]
[null,null,null,null,null,null,null,null,null,null,"Feb"]
[null,null,null,null,null,null,null,null,null,null,"Mar"]
[null,null,null,null,null,null,null,null,null,null,"Apr"]
[null,null,null,null,null,null,null,null,null,null,"May"]
[null,null,null,null,null,null,null,null,null,null,"Jun"]
[null,null,null,null,null,null,null,null,null,null,"Jul"]
[null,null,null,null,null,null,null,null,null,null,"Aug"]
[null,null,null,null,null,null,null,null,null,null,"Sep"]
[null,null,null,null,null,null,null,null,null,null,"Oct"]
[null,null,null,null,null,null,null,null,null,null,"Nov"]
[null,null,null,null,null,null,null,null,null,null,"Dec"]
[null,null,null,null,null,null,null,null,null,null,"Annual",{"$f":"AVERAGE(L67:L78)","v":{"$error":"#DIV/0!"}},{"$f":"MAX(M67:M78)","v":0},{"$f":"AVERAGE(N67:N78)","v":{"$error":"#DIV/0!"}},{"$f":"MAX(O67:O78)","v":0}]